Workbook

Sheet Kantoren
A1: kleurcode: =$B$1:$AJ$33311 | B1: nr. | C1: Boek | D1: =COUNTIF(D2:D1200,"1") -> 0 | G1: =COUNTIF(G2:G1200,"1000") -> 0 | H1: 1 0 0 | I1: 1000-SERIES | J1: manco | N1: aanw. | O1: totaal aanw.: | P1: =SUM(N2:N1042) -> 360781 | Q1: totaal manco: | R1: =SUM(J1:J1042) -> 669858 | S1: =(P1)/(P1+R1) -> 0.3500556451
B2: 1 | C2: 1 | H2: ='1-1000'!AD1 -> 0 | I2: ='1-1000'!K1 -> Aalsmeer | J2: ='1-1000'!AH1 -> 122 | K2: A1 | L2: : | M2: AK32 | N2: =1000-J2 -> 878 | O2: =IF(J2=0,"COMPL","") -> 
B3: 2 | C3: 1 | H3: ='1-1000'!AD33 -> 3 | I3: ='1-1000'!K33 -> Aalten | J3: ='1-1000'!AH33 -> 344 | K3: A33 | L3: : | M3: AK64 | N3: =1000-J3 -> 656
B4: 3 | C4: 1 | H4: ='1-1000'!AD65 -> 6 | I4: ='1-1000'!K65 -> Ter Aar | J4: ='1-1000'!AH65 -> 494 | K4: A65 | L4: : | M4: AK96 | N4: 506
B5: 4 | C5: 1 | H5: ='1-1000'!AD97 -> 7 | I5: ='1-1000'!K97 -> Aarle-Rixtel | J5: ='1-1000'!AH97 -> 640 | K5: A97 | L5: : | M5: AK128 | N5: 360
B6: 5 | C6: 1 | H6: ='1-1000'!AD129 -> 6 | I6: ='1-1000'!K129 -> Abcoude | J6: ='1-1000'!AH129 -> 574 | K6: A129 | L6: : | M6: AK160 | N6: 426
B7: 6 | C7: 1 | H7: ='1-1000'!AD161 -> 8 | I7: ='1-1000'!K161 -> Abcoude (1) | J7: ='1-1000'!AH161 -> 775 | K7: A161 | L7: : | M7: AK192 | N7: 225
B8: 7 | C8: 1 | H8: ='1-1000'!AD193 -> 6 | I8: ='1-1000'!K193 -> Aerdenhout | J8: ='1-1000'!AH193 -> 379 | K8: A193 | L8: : | M8: AK224 | N8: 621
B9: 8 | C9: 1 | H9: ='1-1000'!AD225 -> 0 | I9: ='1-1000'!K225 -> Alblasserdam | J9: ='1-1000'!AH225 -> 195 | K9: A225 | L9: : | M9: AK256 | N9: 805
B10: 9 | C10: 1 | H10: ='1-1000'!AD257 -> 4 | I10: ='1-1000'!K257 -> Alblasserdam (1) | J10: ='1-1000'!AH257 -> 475 | K10: A257 | L10: : | M10: AK288 | N10: 525
B11: 10 | C11: 1 | H11: ='1-1000'!AD289 -> 0 | I11: ='1-1000'!K289 -> Alkmaar | J11: ='1-1000'!AH289 -> 85 | K11: A289 | L11: : | M11: AK320 | N11: 915
B12: 11 | C12: 2 | H12: ='1-1000'!AD321 -> 8 | I12: ='1-1000'!K321 -> Amr - Bagijnenstraat (1) | J12: ='1-1000'!AH321 -> 823 | K12: A321 | L12: : | M12: AK352 | N12: 177
B13: 12 | C13: 2 | H13: ='1-1000'!AD353 -> 8 | I13: ='1-1000'!K353 -> Amr - Bagijnenstraat (3) | J13: ='1-1000'!AH353 -> 774 | K13: A353 | L13: : | M13: AK384 | N13: 226
B14: 13 | C14: 2 | H14: ='1-1000'!AD385 -> 8 | I14: ='1-1000'!K385 -> Amr - Europaboulevard | J14: ='1-1000'!AH385 -> 734 | K14: A385 | L14: : | M14: AK416 | N14: 266
B15: 14 | C15: 2 | H15: ='1-1000'!AD417 -> 7 | I15: ='1-1000'!K417 -> Amr - Europaboulevard (1) | J15: ='1-1000'!AH417 -> 710 | K15: A417 | L15: : | M15: AK448 | N15: 290
B16: 15 | C16: 2 | H16: ='1-1000'!AD449 -> 7 | I16: ='1-1000'!K449 -> Amr - Europaboulevard (3) | J16: ='1-1000'!AH449 -> 755 | K16: A449 | L16: : | M16: AK480 | N16: 245
B17: 16 | C17: 2 | H17: ='1-1000'!AD481 -> 6 | I17: ='1-1000'!K481 -> Amr - Fred Hendriklaan | J17: ='1-1000'!AH481 -> 415 | K17: A481 | L17: : | M17: AK512 | N17: 585
B18: 17 | C18: 2 | H18: ='1-1000'!AD513 -> 3 | I18: ='1-1000'!K513 -> Amr - Muiderwaard | J18: ='1-1000'!AH513 -> 586 | K18: A513 | L18: : | M18: AK544 | N18: 414
B19: 18 | C19: 2 | H19: ='1-1000'!AD545 -> 9 | I19: ='1-1000'!K545 -> Amr - J Naberstraat | J19: ='1-1000'!AH545 -> 761 | K19: A545 | L19: : | M19: AK576 | N19: 239
B20: 19 | C20: 2 | H20: ='1-1000'!AD577 -> 5 | I20: ='1-1000'!K577 -> Amr - van Ostadelaan | J20: ='1-1000'!AH577 -> 463 | K20: A577 | L20: : | M20: AK608 | N20: 537
B21: 20 | C21: 2 | H21: ='1-1000'!AD609 -> 9 | I21: ='1-1000'!K609 -> Amr - Wendelaarstraat | J21: ='1-1000'!AH609 -> 735 | K21: A609 | L21: : | M21: AK640 | N21: 265
B22: 21 | C22: 3 | H22: ='1-1000'!AD641 -> 0 | I22: ='1-1000'!K641 -> Almelo | J22: ='1-1000'!AH641 -> 8 | K22: A641 | L22: : | M22: AK672 | N22: 992
B23: 22 | C23: 3 | H23: ='1-1000'!AD673 -> 4 | I23: ='1-1000'!K673 -> Almere | J23: ='1-1000'!AH673 -> 426 | K23: A673 | L23: : | M23: AK704 | N23: 574
B24: 23 | C24: 3 | H24: ='1-1000'!AD705 -> 9 | I24: ='1-1000'!K705 -> Alr - van Eesterenplein | J24: ='1-1000'!AH705 -> 582 | K24: A705 | L24: : | M24: AK736 | N24: 418
B25: 24 | C25: 3 | H25: ='1-1000'!AD737 -> 9 | I25: ='1-1000'!K737 -> Alr - Jaagmeent | J25: ='1-1000'!AH737 -> 780 | K25: A737 | L25: : | M25: AK768 | N25: 220
B26: 25 | C26: 3 | H26: ='1-1000'!AD769 -> 9 | I26: ='1-1000'!K769 -> Alr - Lavendelplantsoen | J26: ='1-1000'!AH769 -> 861 | K26: A769 | L26: : | M26: AK800 | N26: 139
B27: 26 | C27: 3 | H27: ='1-1000'!AD801 -> 9 | I27: ='1-1000'!K801 -> Alr - Marktgracht | J27: ='1-1000'!AH801 -> 497 | K27: A801 | L27: : | M27: AK832 | N27: 503
B28: 27 | C28: 3 | H28: ='1-1000'!AD833 -> 4 | I28: ='1-1000'!K833 -> Alr - Marktgracht (1) | J28: ='1-1000'!AH833 -> 515 | K28: A833 | L28: : | M28: AK864 | N28: 485
B29: 28 | C29: 3 | H29: ='1-1000'!AD865 -> 9 | I29: ='1-1000'!K865 -> Alr - Noordeinde | J29: ='1-1000'!AH865 -> 619 | K29: A865 | L29: : | M29: AK896 | N29: 381
B30: 29 | C30: 3 | H30: ='1-1000'!AD897 -> 6 | I30: ='1-1000'!K897 -> Alr - de Paal | J30: ='1-1000'!AH897 -> 776 | K30: A897 | L30: : | M30: AK928 | N30: 224
B31: 30 | C31: 3 | H31: ='1-1000'!AD929 -> 7 | I31: ='1-1000'!K929 -> Alr - Spoordreef | J31: ='1-1000'!AH929 -> 495 | K31: A929 | L31: : | M31: AK960 | N31: 505
B32: 31 | C32: 4 | H32: ='1-1000'!AD961 -> 5 | I32: ='1-1000'!K961 -> Alr - Spoordreef (1) | J32: ='1-1000'!AH961 -> 509 | K32: A961 | L32: : | M32: AK992 | N32: 491
B33: 32 | C33: 4 | H33: ='1-1000'!AD993 -> 6 | I33: ='1-1000'!K993 -> Alr - Spoordreef (2) | J33: ='1-1000'!AH993 -> 523 | K33: A993 | L33: : | M33: AK1024 | N33: 477
B34: 33 | C34: 4 | H34: ='1-1000'!AD1025 -> 0 | I34: ='1-1000'!K1025 -> Alphen a/d Rijn | J34: ='1-1000'!AH1025 -> 49 | K34: A1025 | L34: : | M34: AK1056 | N34: 951
B35: 34 | C35: 4 | H35: ='1-1000'!AD1057 -> 8 | I35: ='1-1000'!K1057 -> Alphen a/d Rijn (3) | J35: ='1-1000'!AH1057 -> 777 | K35: A1057 | L35: : | M35: AK1088 | N35: 223
B36: 35 | C36: 4 | H36: ='1-1000'!AD1089 -> 9 | I36: ='1-1000'!K1089 -> Al - Herenhof | J36: ='1-1000'!AH1089 -> 719 | K36: A1089 | L36: : | M36: AK1120 | N36: 281
B37: 36 | C37: 4 | H37: ='1-1000'!AD1121 -> 6 | I37: ='1-1000'!K1121 -> Al - Herenhof (1) | J37: ='1-1000'!AH1121 -> 519 | K37: A1121 | L37: : | M37: AK1152 | N37: 481
B38: 37 | C38: 4 | H38: ='1-1000'!AD1153 -> 9 | I38: ='1-1000'!K1153 -> Al - Julianastraat | J38: ='1-1000'!AH1153 -> 687 | K38: A1153 | L38: : | M38: AK1184 | N38: 313
B39: 38 | C39: 4.002224694 | H39: ='1-1000'!AD1185 -> 6 | I39: ='1-1000'!K1185 -> Al - Julianastraat (2) | J39: ='1-1000'!AH1185 -> 667 | K39: A1185 | L39: : | M39: AK1216 | N39: 333
B40: 39 | C40: 4 | H40: ='1-1000'!AD1217 -> 4 | I40: ='1-1000'!K1217 -> Al - Ridderhof | J40: ='1-1000'!AH1217 -> 498 | K40: A1217 | L40: : | M40: AK1248 | N40: 502
B41: 40 | C41: 4 | H41: ='1-1000'!AD1249 -> 9 | I41: ='1-1000'!K1249 -> Al - Ridderhof (1) | J41: ='1-1000'!AH1249 -> 671 | K41: A1249 | L41: : | M41: AK1280 | N41: 329
B42: 41 | C42: 5 | H42: ='1-1000'!AD1281 -> 5 | I42: ='1-1000'!K1281 -> Ameide | J42: ='1-1000'!AH1281 -> 651 | K42: A1281 | L42: : | M42: AK1312 | N42: 349
B43: 42 | C43: 5 | H43: ='1-1000'!AD1313 -> 5 | I43: ='1-1000'!K1313 -> Amerongen | J43: ='1-1000'!AH1313 -> 532 | K43: A1313 | L43: : | M43: AK1344 | N43: 468
B44: 43 | C44: 5 | H44: ='1-1000'!AD1345 -> 0 | I44: ='1-1000'!K1345 -> Amersfoort | J44: ='1-1000'!AH1345 -> 15 | K44: A1345 | L44: : | M44: AK1376 | N44: 985
B45: 44 | C45: 5 | H45: ='1-1000'!AD1377 -> 1 | I45: ='1-1000'!K1377 -> Amersfoort (1) | J45: ='1-1000'!AH1377 -> 100 | K45: A1377 | L45: : | M45: AK1408 | N45: 900
B46: 45 | C46: 5 | H46: ='1-1000'!AD1409 -> 0 | I46: ='1-1000'!K1409 -> Amersfoort (2) | J46: ='1-1000'!AH1409 -> 45 | K46: A1409 | L46: : | M46: AK1440 | N46: 955 | O46: =IF(J46=0,"COMPL","") -> 
B47: 46 | C47: 5 | H47: ='1-1000'!AD1441 -> 8 | I47: ='1-1000'!K1441 -> Amf - De Bosch Kemperlaan | J47: ='1-1000'!AH1441 -> 778 | K47: A1441 | L47: : | M47: AK1472 | N47: 222
B48: 47 | C48: 5 | H48: ='1-1000'!AD1473 -> 6 | I48: ='1-1000'!K1473 -> Amf - Euterpeplein | J48: ='1-1000'!AH1473 -> 542 | K48: A1473 | L48: : | M48: AK1504 | N48: 458
B49: 48 | C49: 5 | H49: ='1-1000'!AD1505 -> 3 | I49: ='1-1000'!K1505 -> Amf - Spaarnestraat | J49: ='1-1000'!AH1505 -> 482 | K49: A1505 | L49: : | M49: AK1536 | N49: 518
B50: 49 | C50: 5 | H50: ='1-1000'!AD1537 -> 9 | I50: ='1-1000'!K1537 -> Amf - Pieter Stastokerf | J50: ='1-1000'!AH1537 -> 681 | K50: A1537 | L50: : | M50: AK1568 | N50: 319
B51: 50 | C51: 5 | H51: ='1-1000'!AD1569 -> 9 | I51: ='1-1000'!K1569 -> Ammerzoden | J51: ='1-1000'!AH1569 -> 647 | K51: A1569 | L51: : | M51: AK1600 | N51: 353
B52: 51 | C52: 6 | H52: ='1-1000'!AD1601 -> 1 | I52: ='1-1000'!K1601 -> Amstelveen | J52: ='1-1000'!AH1601 -> 19 | K52: A1601 | L52: : | M52: AK1632 | N52: 981
B53: 52 | C53: 6 | H53: ='1-1000'!AD1633 -> 1 | I53: ='1-1000'!K1633 -> Amstelveen (1) | J53: ='1-1000'!AH1633 -> 60 | K53: A1633 | L53: : | M53: AK1664 | N53: 940
B54: 53 | C54: 6 | H54: ='1-1000'!AD1665 -> 6 | I54: ='1-1000'!K1665 -> Amstelveen (2) | J54: ='1-1000'!AH1665 -> 352 | K54: A1665 | L54: : | M54: AK1696 | N54: 648
B55: 54 | C55: 6 | H55: ='1-1000'!AD1697 -> 4 | I55: ='1-1000'!K1697 -> Asv - Groenhof | J55: ='1-1000'!AH1697 -> 487 | K55: A1697 | L55: : | M55: AK1728 | N55: 513
B56: 55 | C56: 6 | H56: ='1-1000'!AD1729 -> 6 | I56: ='1-1000'!K1729 -> Asv - Kostverlorenhof | J56: ='1-1000'!AH1729 -> 492 | K56: A1729 | L56: : | M56: AK1760 | N56: 508
B57: 56 | C57: 6 | H57: ='1-1000'!AD1761 -> 2 | I57: ='1-1000'!K1761 -> Asv - Legmeer | J57: ='1-1000'!AH1761 -> 388 | K57: A1761 | L57: : | M57: AK1792 | N57: 612
B58: 57 | H58: ='1-1000'!AD1793 -> 8 | I58: ='1-1000'!K1793 -> Asv - Middenhoven | J58: ='1-1000'!AH1793 -> 739 | K58: A1793 | L58: : | M58: AK1824 | N58: 261
B59: 58 | C59: 6 | H59: ='1-1000'!AD1825 -> 7 | I59: ='1-1000'!K1825 -> Asv - Middenhoven (1) | J59: ='1-1000'!AH1825 -> 702 | K59: A1825 | L59: : | M59: AK1856 | N59: 298
A60: x | B60: 59 | C60: 6 | H60: ='1-1000'!AD1857 -> 0 | I60: ='1-1000'!K1857 -> Amsterdam | J60: ='1-1000'!AH1857 -> 1 | K60: A1857 | L60: : | M60: AK1888 | N60: 999
A61: x | B61: 60 | C61: 6 | H61: ='1-1000'!AD1889 -> 0 | I61: ='1-1000'!K1889 -> Amsterdam 2e | J61: ='1-1000'!AH1889 -> 150 | K61: A1889 | L61: : | M61: AK1920 | N61: 850
A62: x | B62: 61 | C62: 7 | H62: ='1-1000'!AD1921 -> 1 | I62: ='1-1000'!K1921 -> Amsterdam (1) | J62: ='1-1000'!AH1921 -> 151 | K62: A1921 | L62: : | M62: AK1952 | N62: 849
B63: 62 | C63: 7 | H63: ='1-1000'!AD1953 -> 4 | I63: ='1-1000'!K1953 -> Asd - Sint Antoniesbreestraat | J63: ='1-1000'!AH1953 -> 255 | K63: A1953 | L63: : | M63: AK1984 | N63: 745
B64: 63 | C64: 7 | H64: ='1-1000'!AD1985 -> 4 | I64: ='1-1000'!K1985 -> Asd - Bloemgracht | J64: ='1-1000'!AH1985 -> 376 | K64: A1985 | L64: : | M64: AK2016 | N64: 624
B65: 64 | C65: 7 | H65: ='1-1000'!AD2017 -> 6 | I65: ='1-1000'!K2017 -> Asd - Bloemgracht (1) | J65: ='1-1000'!AH2017 -> 452 | K65: A2017 | L65: : | M65: AK2048 | N65: 548
B66: 65 | C66: 7 | H66: ='1-1000'!AD2049 -> 0 | I66: ='1-1000'!K2049 -> Asd - Borgerstraat | J66: ='1-1000'!AH2049 -> 116 | K66: A2049 | L66: : | M66: AK2080 | N66: 884 | O66: =IF(J66=0,"COMPL","") -> 
A67: x | B67: 66 | C67: 7 | H67: ='1-1000'!AD2081 -> 0 | I67: ='1-1000'!K2081 -> Asd - Bos en Lommerplein | J67: ='1-1000'!AH2081 -> 53 | K67: A2081 | L67: : | M67: AK2112 | N67: =1000-J67 -> 947
B68: 67 | C68: 7 | H68: ='1-1000'!AD2113 -> 1 | I68: ='1-1000'!K2113 -> Asd - Bos en Lommerplein (1) | J68: ='1-1000'!AH2113 -> 162 | K68: A2113 | L68: : | M68: AK2144 | N68: 838
B69: 68 | C69: 7 | H69: ='1-1000'!AD2145 -> 5 | I69: ='1-1000'!K2145 -> Asd - Bremstraat | J69: ='1-1000'!AH2145 -> 342 | K69: A2145 | L69: : | M69: AK2176 | N69: 658
B70: 69 | C70: 7 | H70: ='1-1000'!AD2177 -> 7 | I70: ='1-1000'!K2177 -> Asd - Buikslotermeerplein | J70: ='1-1000'!AH2177 -> 466 | K70: A2177 | L70: : | M70: AK2208 | N70: 534
B71: 70 | C71: 7 | H71: ='1-1000'!AD2209 -> 4 | I71: ='1-1000'!K2209 -> Asd - Buikslotermeerplein (1) | J71: ='1-1000'!AH2209 -> 579 | K71: A2209 | L71: : | M71: AK2240 | N71: 421
B72: 71 | C72: 8 | H72: ='1-1000'!AD2241 -> 0 | I72: ='1-1000'!K2241 -> Asd - Courbetstraat | J72: ='1-1000'!AH2241 -> 186 | K72: A2241 | L72: : | M72: AK2272 | N72: 814
A73: x | B73: 72 | C73: 8 | H73: ='1-1000'!AD2273 -> 0 | I73: ='1-1000'!K2273 -> Asd - Albert Cuypstraat | J73: ='1-1000'!AH2273 -> 181 | K73: A2273 | L73: : | M73: AK2304 | N73: 819
B74: 73 | C74: 8 | H74: ='1-1000'!AD2305 -> 2 | I74: ='1-1000'!K2305 -> Asd - Derkinderenstraat | J74: ='1-1000'!AH2305 -> 433 | K74: A2305 | L74: : | M74: AK2336 | N74: 567
A75: x | B75: 74 | C75: 8 | H75: ='1-1000'!AD2337 -> 0 | I75: ='1-1000'!K2337 -> Asd - A J Ernststraat | J75: ='1-1000'!AH2337 -> 181 | K75: A2337 | L75: : | M75: AK2368 | N75: 819
A76: x | B76: 75 | C76: 8 | H76: ='1-1000'!AD2369 -> 6 | I76: ='1-1000'!K2369 -> Asd - A J Ernststraat (1) | J76: ='1-1000'!AH2369 -> 354 | K76: A2369 | L76: : | M76: AK2400 | N76: 646
B77: 76 | C77: 8 | H77: ='1-1000'!AD2401 -> 1 | I77: ='1-1000'!K2401 -> Asd - Haarlemmerdijk | J77: ='1-1000'!AH2401 -> 141 | K77: A2401 | L77: : | M77: AK2432 | N77: 859
B78: 77 | C78: 8 | H78: ='1-1000'!AD2433 -> 1 | I78: ='1-1000'!K2433 -> Asd - Hemonystraat | J78: ='1-1000'!AH2433 -> 208 | K78: A2433 | L78: : | M78: AK2464 | N78: 792
B79: 78 | C79: 8 | H79: ='1-1000'!AD2465 -> 0 | I79: ='1-1000'!K2465 -> Asd - Keizersgracht | J79: ='1-1000'!AH2465 -> 104 | K79: A2465 | L79: : | M79: AK2496 | N79: 896
B80: 79 | C80: 8 | H80: ='1-1000'!AD2497 -> 1 | I80: ='1-1000'!K2497 -> Asd - Keizersgracht (1) | J80: ='1-1000'!AH2497 -> 99 | K80: A2497 | L80: : | M80: AK2528 | N80: 901
B81: 80 | C81: 8 | H81: ='1-1000'!AD2529 -> 0 | I81: ='1-1000'!K2529 -> Asd - Kerkstraat | J81: ='1-1000'!AH2529 -> 64 | K81: A2529 | L81: : | M81: AK2560 | N81: 936
B82: 81 | C82: 9 | H82: ='1-1000'!AD2561 -> 3 | I82: ='1-1000'!K2561 -> Asd - Kerkstraat (1) | J82: ='1-1000'!AH2561 -> 96 | K82: A2561 | L82: : | M82: AK2592 | N82: 904
B83: 82 | C83: 9 | H83: ='1-1000'!AD2593 -> 2 | I83: ='1-1000'!K2593 -> Asd - Koninginneweg | J83: ='1-1000'!AH2593 -> 179 | K83: A2593 | L83: : | M83: AK2624 | N83: 821
B84: 83 | C84: 9 | H84: ='1-1000'!AD2625 -> 4 | I84: ='1-1000'!K2625 -> Asd - Koninginneweg (1) | J84: ='1-1000'!AH2625 -> 411 | K84: A2625 | L84: : | M84: AK2656 | N84: 589
B85: 84 | C85: 9 | H85: ='1-1000'!AD2657 -> 3 | I85: ='1-1000'!K2657 -> Asd - 2e Kostverlorenkade | J85: ='1-1000'!AH2657 -> 328 | K85: A2657 | L85: : | M85: AK2688 | N85: 672
B86: 85 | C86: 9 | H86: ='1-1000'!AD2689 -> 2 | I86: ='1-1000'!K2689 -> Asd - 2e Kostverlorenkade (1) | J86: ='1-1000'!AH2689 -> 385 | K86: A2689 | L86: : | M86: AK2720 | N86: 615
B87: 86 | C87: 9 | H87: ='1-1000'!AD2721 -> 0 | I87: ='1-1000'!K2721 -> Asd - Oosterdokskade | J87: ='1-1000'!AH2721 -> 12 | K87: A2721 | L87: : | M87: AK2752 | N87: 988
B88: 87 | C88: 9 | H88: ='1-1000'!AD2753 -> 0 | I88: ='1-1000'!K2753 -> Asd - Oosterdokskade (1) | J88: ='1-1000'!AH2753 -> 11 | K88: A2753 | L88: : | M88: AK2784 | N88: 989
B89: 88 | C89: 9 | H89: ='1-1000'!AD2785 -> 3 | I89: ='1-1000'!K2785 -> Asd - Oosterdokskade (2) | J89: ='1-1000'!AH2785 -> 220 | K89: A2785 | L89: : | M89: AK2816 | N89: 780
B90: 89 | C90: 9 | H90: ='1-1000'!AD2817 -> 6 | I90: ='1-1000'!K2817 -> Asd - Oosterdokskade (3) | J90: ='1-1000'!AH2817 -> 384 | K90: A2817 | L90: : | M90: AK2848 | N90: 616
A91: x | B91: 90 | C91: 9 | H91: ='1-1000'!AD2849 -> 0 | I91: ='1-1000'!K2849 -> Asd - Oosterdokskade (4) | J91: ='1-1000'!AH2849 -> 416 | K91: A2849 | L91: : | M91: AK2880 | N91: 584
B92: 91 | C92: 10 | H92: ='1-1000'!AD2881 -> 1 | I92: ='1-1000'!K2881 -> Asd - Plantage Middenlaan | J92: ='1-1000'!AH2881 -> 372 | K92: A2881 | L92: : | M92: AK2912 | N92: 628
B93: 92 | C93: 10 | H93: ='1-1000'!AD2913 -> 1 | I93: ='1-1000'!K2913 -> Asd - Stadhouderskade | J93: ='1-1000'!AH2913 -> 79 | K93: A2913 | L93: : | M93: AK2944 | N93: 921
B94: 93 | C94: 10 | H94: ='1-1000'!AD2945 -> 3 | I94: ='1-1000'!K2945 -> Asd - Stadhouderskade (1) | J94: ='1-1000'!AH2945 -> 203 | K94: A2945 | L94: : | M94: AK2976 | N94: 797
B95: 94 | C95: 10 | H95: ='1-1000'!AD2977 -> 4 | I95: ='1-1000'!K2977 -> Asd - Gerard Terborgstraat | J95: ='1-1000'!AH2977 -> 221 | K95: A2977 | L95: : | M95: AK3008 | N95: 779
B96: 95 | C96: 10 | H96: ='1-1000'!AD3009 -> 5 | I96: ='1-1000'!K3009 -> Asd - Gerard Terborgstraat (1) | J96: ='1-1000'!AH3009 -> 240 | K96: A3009 | L96: : | M96: AK3040 | N96: 760
B97: 96 | C97: 10 | H97: ='1-1000'!AD3041 -> 3 | I97: ='1-1000'!K3041 -> Asd - Tussen Meer | J97: ='1-1000'!AH3041 -> 201 | K97: A3041 | L97: : | M97: AK3072 | N97: 799
B98: 97 | C98: 10 | H98: ='1-1000'!AD3073 -> 3 | I98: ='1-1000'!K3073 -> Asd - Johan Verhulststraat | J98: ='1-1000'!AH3073 -> 137 | K98: A3073 | L98: : | M98: AK3104 | N98: 863
B99: 98 | C99: 10 | H99: ='1-1000'!AD3105 -> 4 | I99: ='1-1000'!K3105 -> Asd - Johan Verhulststraat (1) | J99: ='1-1000'!AH3105 -> 209 | K99: A3105 | L99: : | M99: AK3136 | N99: 791
B100: 99 | C100: 10 | H100: ='1-1000'!AD3137 -> 6 | I100: ='1-1000'!K3137 -> Asd - Burg de Vlugtlaan | J100: ='1-1000'!AH3137 -> 501 | K100: A3137 | L100: : | M100: AK3168 | N100: 499
B101: 100 | C101: 10 | H101: ='1-1000'!AD3169 -> 0 | I101: ='1-1000'!K3169 -> Asd - Waalstraat | J101: ='1-1000'!AH3169 -> 150 | K101: A3169 | L101: : | M101: AK3200 | N101: 850
B102: 101 | C102: 11 | H102: ='1-1000'!AD3201 -> 5 | I102: ='1-1000'!K3201 -> Asd - Waalstraat (1) | J102: ='1-1000'!AH3201 -> 248 | K102: A3201 | L102: : | M102: AK3232 | N102: 752
B103: 102 | C103: 11 | H103: ='1-1000'!AD3233 -> 4 | I103: ='1-1000'!K3233 -> Asd - Waterlandplein | J103: ='1-1000'!AH3233 -> 438 | K103: A3233 | L103: : | M103: AK3264 | N103: 562
B104: 103 | C104: 11 | H104: ='1-1000'!AD3265 -> 5 | I104: ='1-1000'!K3265 -> Asd - Wibautstraat | J104: ='1-1000'!AH3265 -> 546 | K104: A3265 | L104: : | M104: AK3296 | N104: 454
B105: 104 | C105: 11 | H105: ='1-1000'!AD3297 -> 0 | I105: ='1-1000'!K3297 -> Asd - Zaanstraat | J105: ='1-1000'!AH3297 -> 245 | K105: A3297 | L105: : | M105: AK3328 | N105: 755
B106: 105 | C106: 11 | H106: ='1-1000'!AD3329 -> 6 | I106: ='1-1000'!K3329 -> Asd - Zuidoost | J106: ='1-1000'!AH3329 -> 323 | K106: A3329 | L106: : | M106: AK3360 | N106: 677
B107: 106 | C107: 11 | H107: ='1-1000'!AD3361 -> 8 | I107: ='1-1000'!K3361 -> Asd - Zuidoost (1) | J107: ='1-1000'!AH3361 -> 483 | K107: A3361 | L107: : | M107: AK3392 | N107: 517
B108: 107 | C108: 11 | H108: ='1-1000'!AD3393 -> 5 | I108: ='1-1000'!K3393 -> Asd - Zuidoost (2) | J108: ='1-1000'!AH3393 -> 532 | K108: A3393 | L108: : | M108: AK3424 | N108: 468
B109: 108 | C109: 11 | H109: ='1-1000'!AD3425 -> 8 | I109: ='1-1000'!K3425 -> Asd - Zuidoost (3) | J109: ='1-1000'!AH3425 -> 575 | K109: A3425 | L109: : | M109: AK3456 | N109: 425
B110: 109 | C110: 11 | H110: ='1-1000'!AD3457 -> 7 | I110: ='1-1000'!K3457 -> Asd - Zuidoost Kraaiennest | J110: ='1-1000'!AH3457 -> 499 | K110: A3457 | L110: : | M110: AK3488 | N110: 501
B111: 110 | C111: 11 | H111: ='1-1000'!AD3489 -> 9 | I111: ='1-1000'!K3489 -> Asd - Zuidoost Reigersbos | J111: ='1-1000'!AH3489 -> 654 | K111: A3489 | L111: : | M111: AK3520 | N111: 346
B112: 111 | C112: 12 | H112: ='1-1000'!AD3521 -> 7 | I112: ='1-1000'!K3521 -> Asd - Zuidoost Reigersbos (1) | J112: ='1-1000'!AH3521 -> 640 | K112: A3521 | L112: : | M112: AK3552 | N112: 360
B113: 112 | C113: 12 | H113: ='1-1000'!AD3553 -> 4 | I113: ='1-1000'!K3553 -> Asd - Lambertus Zijlplein | J113: ='1-1000'!AH3553 -> 497 | K113: A3553 | L113: : | M113: AK3584 | N113: 503
B114: 113 | C114: 12 | H114: ='1-1000'!AD3585 -> 8 | I114: ='1-1000'!K3585 -> Anna Paulowna | J114: ='1-1000'!AH3585 -> 495 | K114: A3585 | L114: : | M114: AK3616 | N114: 505
B115: 114 | C115: 12 | H115: ='1-1000'!AD3617 -> 0 | I115: ='1-1000'!K3617 -> Apeldoorn | J115: ='1-1000'!AH3617 -> 0 | K115: A3617 | L115: : | M115: AK3648 | N115: 1000 | O115: COMPL
B116: 115 | C116: 12 | H116: ='1-1000'!AD3649 -> 0 | I116: ='1-1000'!K3649 -> Apeldoorn 2e | J116: ='1-1000'!AH3649 -> 0 | K116: A3649 | L116: : | M116: AK3680 | N116: 1000 | O116: COMPL
B117: 116 | C117: 12 | H117: ='1-1000'!AD3681 -> 1 | I117: ='1-1000'!K3681 -> Ap - de Eglantier | J117: ='1-1000'!AH3681 -> 299 | K117: A3681 | L117: : | M117: AK3712 | N117: 701
A118: x | B118: 117 | C118: 12 | H118: ='1-1000'!AD3713 -> 5 | I118: ='1-1000'!K3713 -> Ap - Chr Geurtsweg | J118: ='1-1000'!AH3713 -> 470 | K118: A3713 | L118: : | M118: AK3744 | N118: 530
B119: 118 | C119: 12 | H119: ='1-1000'!AD3745 -> 6 | I119: ='1-1000'!K3745 -> Ap - Korianderplein | J119: ='1-1000'!AH3745 -> 452 | K119: A3745 | L119: : | M119: AK3776 | N119: 548
B120: 119 | C120: 12 | H120: ='1-1000'!AD3777 -> 6 | I120: ='1-1000'!K3777 -> Ap - Mercatorplein | J120: ='1-1000'!AH3777 -> 612 | K120: A3777 | L120: : | M120: AK3808 | N120: 388
B121: 120 | C121: 12 | H121: ='1-1000'!AD3809 -> 6 | I121: ='1-1000'!K3809 -> Ap - Mgr Nolensstraat | J121: ='1-1000'!AH3809 -> 522 | K121: A3809 | L121: : | M121: AK3840 | N121: 478
B122: 121 | C122: 13 | H122: ='1-1000'!AD3841 -> 2 | I122: ='1-1000'!K3841 -> Ap - Operaplein | J122: ='1-1000'!AH3841 -> 308 | K122: A3841 | L122: : | M122: AK3872 | N122: 692
B123: 122 | C123: 13 | H123: ='1-1000'!AD3873 -> 6 | I123: ='1-1000'!K3873 -> Ap - Schubertlaan | J123: ='1-1000'!AH3873 -> 468 | K123: A3873 | L123: : | M123: AK3904 | N123: 532
B124: 123 | C124: 13 | H124: ='1-1000'!AD3905 -> 2 | I124: ='1-1000'!K3905 -> Appingedam | J124: ='1-1000'!AH3905 -> 277 | K124: A3905 | L124: : | M124: AK3936 | N124: 723
B125: 124 | C125: 13 | H125: ='1-1000'!AD3937 -> 7 | I125: ='1-1000'!K3937 -> Arnemuiden | J125: ='1-1000'!AH3937 -> 764 | K125: A3937 | L125: : | M125: AK3968 | N125: 236
B126: 125 | C126: 13 | H126: ='1-1000'!AD3969 -> 0 | I126: ='1-1000'!K3969 -> Arnhem | J126: ='1-1000'!AH3969 -> 7 | K126: A3969 | L126: : | M126: AK4000 | N126: 993
B127: 126 | C127: 13 | H127: ='1-1000'!AD4001 -> 5 | I127: ='1-1000'!K4001 -> Arnhem (1) | J127: ='1-1000'!AH4001 -> 287 | K127: A4001 | L127: : | M127: AK4032 | N127: 713
B128: 127 | C128: 13 | H128: ='1-1000'!AD4033 -> 5 | I128: ='1-1000'!K4033 -> Arnhem (2) | J128: ='1-1000'!AH4033 -> 546 | K128: A4033 | L128: : | M128: AK4064 | N128: 454
B129: 128 | C129: 13 | H129: ='1-1000'!AD4065 -> 7 | I129: ='1-1000'!K4065 -> Arnhem (3) | J129: ='1-1000'!AH4065 -> 529 | K129: A4065 | L129: : | M129: AK4096 | N129: 471
B130: 129 | C130: 13 | H130: ='1-1000'!AD4097 -> 6 | I130: ='1-1000'!K4097 -> Arnhem (4) | J130: ='1-1000'!AH4097 -> 456 | K130: A4097 | L130: : | M130: AK4128 | N130: 544 | O130: =IF(J130=0,"COMPL","") -> 
B131: 130 | H131: ='1-1000'!AD4129 -> 5 | I131: ='1-1000'!K4129 -> Ah - Driekoningenstraat | J131: ='1-1000'!AH4129 -> 569 | K131: A4129 | L131: : | M131: AK4160 | N131: =1000-J131 -> 431
B132: 131 | C132: 14 | H132: ='1-1000'!AD4161 -> 8 | I132: ='1-1000'!K4161 -> Ah - Geitenkamp | J132: ='1-1000'!AH4161 -> 509 | K132: A4161 | L132: : | M132: AK4192 | N132: 491
B133: 132 | C133: 14 | H133: ='1-1000'!AD4193 -> 7 | I133: ='1-1000'!K4193 -> Ah - Kronenburg Promenade | J133: ='1-1000'!AH4193 -> 644 | K133: A4193 | L133: : | M133: AK4224 | N133: 356
B134: 133 | C134: 14 | H134: ='1-1000'!AD4225 -> 8 | I134: ='1-1000'!K4225 -> Ah - Kronenburg Promenade (1) | J134: ='1-1000'!AH4225 -> 689 | K134: A4225 | L134: : | M134: AK4256 | N134: 311
B135: 134 | C135: 14 | H135: ='1-1000'!AD4257 -> 4 | I135: ='1-1000'!K4257 -> Ah - Kronenburg Promenade (2) | J135: ='1-1000'!AH4257 -> 696 | K135: A4257 | L135: : | M135: AK4288 | N135: 304
B136: 135 | C136: 14 | H136: ='1-1000'!AD4289 -> 2 | I136: ='1-1000'!K4289 -> Ah - Lange Wal | J136: ='1-1000'!AH4289 -> 362 | K136: A4289 | L136: : | M136: AK4320 | N136: 638
B137: 136 | C137: 14 | H137: ='1-1000'!AD4321 -> 7 | I137: ='1-1000'!K4321 -> Ah - Lange Wal (1) | J137: ='1-1000'!AH4321 -> 551 | K137: A4321 | L137: : | M137: AK4352 | N137: 449
B138: 137 | C138: 14 | H138: ='1-1000'!AD4353 -> 3 | I138: ='1-1000'!K4353 -> Ah - Lange Wal (2) | J138: ='1-1000'!AH4353 -> 614 | K138: A4353 | L138: : | M138: AK4384 | N138: 386
B139: 138 | C139: 14 | H139: ='1-1000'!AD4385 -> 6 | I139: ='1-1000'!K4385 -> Ah - Middelgraaflaan | J139: ='1-1000'!AH4385 -> 494 | K139: A4385 | L139: : | M139: AK4416 | N139: 506
B140: 139 | C140: 14 | H140: ='1-1000'!AD4417 -> 9 | I140: ='1-1000'!K4417 -> Ah - Wichard van Pontlaan | J140: ='1-1000'!AH4417 -> 583 | K140: A4417 | L140: : | M140: AK4448 | N140: 417
B141: 140 | C141: 14 | H141: ='1-1000'!AD4449 -> 5 | I141: ='1-1000'!K4449 -> Ah - Roosendaalsestraat | J141: ='1-1000'!AH4449 -> 595 | K141: A4449 | L141: : | M141: AK4480 | N141: 405
B142: 141 | C142: 15 | H142: ='1-1000'!AD4481 -> 0 | I142: ='1-1000'!K4481 -> Ah - Stationsplein West | J142: ='1-1000'!AH4481 -> 161 | K142: A4481 | L142: : | M142: AK4512 | N142: 839
B143: 142 | H143: ='1-1000'!AD4513 -> 2 | I143: ='1-1000'!K4513 -> Ah - Stationsplein West (1) | J143: ='1-1000'!AH4513 -> 288 | K143: A4513 | L143: : | M143: AK4544 | N143: 712
B144: 143 | C144: 15 | H144: ='1-1000'!AD4545 -> 1 | I144: ='1-1000'!K4545 -> Ah - Stationsplein West (2) | J144: ='1-1000'!AH4545 -> 94 | K144: A4545 | L144: : | M144: AK4576 | N144: 906
B145: 144 | C145: 15 | H145: ='1-1000'!AD4577 -> 1 | I145: ='1-1000'!K4577 -> Ah - Stationsplein West (3) | J145: ='1-1000'!AH4577 -> 39 | K145: A4577 | L145: : | M145: AK4608 | N145: 961
A146: x | B146: 145 | C146: 15 | H146: ='1-1000'!AD4609 -> 1 | I146: ='1-1000'!K4609 -> Ah - Johan de Wittlaan | J146: ='1-1000'!AH4609 -> 192 | K146: A4609 | L146: : | M146: AK4640 | N146: 808
B147: 146 | C147: 15 | H147: ='1-1000'!AD4641 -> 7 | I147: ='1-1000'!K4641 -> Ah - Johan de Wittlaan (1) | J147: ='1-1000'!AH4641 -> 635 | K147: A4641 | L147: : | M147: AK4672 | N147: 365
B148: 147 | C148: 15 | H148: ='1-1000'!AD4673 -> 3 | I148: ='1-1000'!K4673 -> Ah - Johan de Wittlaan (2) | J148: ='1-1000'!AH4673 -> 188 | K148: A4673 | L148: : | M148: AK4704 | N148: 812
B149: 148 | C149: 15 | H149: ='1-1000'!AD4705 -> 0 | I149: ='1-1000'!K4705 -> Assen | J149: ='1-1000'!AH4705 -> 1 | K149: A4705 | L149: : | M149: AK4736 | N149: 999
B150: 149 | C150: 15 | H150: ='1-1000'!AD4737 -> 5 | I150: ='1-1000'!K4737 -> Assen (1) | J150: ='1-1000'!AH4737 -> 533 | K150: A4737 | L150: : | M150: AK4768 | N150: 467
B151: 150 | C151: 15 | H151: ='1-1000'!AD4769 -> 9 | I151: ='1-1000'!K4769 -> Asn - Nobellaan | J151: ='1-1000'!AH4769 -> 712 | K151: A4769 | L151: : | M151: AK4800 | N151: 288
B152: 151 | C152: 16 | H152: ='1-1000'!AD4801 -> 5 | I152: ='1-1000'!K4801 -> Asten | J152: ='1-1000'!AH4801 -> 453 | K152: A4801 | L152: : | M152: AK4832 | N152: 547
B153: 152 | C153: 16 | H153: ='1-1000'!AD4833 -> 5 | I153: ='1-1000'!K4833 -> Asten (1) | J153: ='1-1000'!AH4833 -> 490 | K153: A4833 | L153: : | M153: AK4864 | N153: 510
B154: 153 | C154: 16 | H154: ='1-1000'!AD4865 -> 1 | I154: ='1-1000'!K4865 -> Axel | J154: ='1-1000'!AH4865 -> 308 | K154: A4865 | L154: : | M154: AK4896 | N154: 692
B155: 154 | C155: 16 | H155: ='1-1000'!AD4897 -> 6 | I155: ='1-1000'!K4897 -> Axel (2) | J155: ='1-1000'!AH4897 -> 657 | K155: A4897 | L155: : | M155: AK4928 | N155: 343
B156: 155 | C156: 16 | H156: ='1-1000'!AD4929 -> 3 | I156: ='1-1000'!K4929 -> Baarle Nassau | J156: ='1-1000'!AH4929 -> 327 | K156: A4929 | L156: : | M156: AK4960 | N156: 673
B157: 156 | C157: 16 | H157: ='1-1000'!AD4961 -> 0 | I157: ='1-1000'!K4961 -> Baarn | J157: ='1-1000'!AH4961 -> 73 | K157: A4961 | L157: : | M157: AK4992 | N157: 927
B158: 157 | C158: 16 | H158: ='1-1000'!AD4993 -> 5 | I158: ='1-1000'!K4993 -> Baarn (1) | J158: ='1-1000'!AH4993 -> 345 | K158: A4993 | L158: : | M158: AK5024 | N158: 655
B159: 158 | C159: 16 | H159: ='1-1000'!AD5025 -> 1 | I159: ='1-1000'!K5025 -> Badhoevedorp | J159: ='1-1000'!AH5025 -> 153 | K159: A5025 | L159: : | M159: AK5056 | N159: 847
B160: 159 | C160: 16 | H160: ='1-1000'!AD5057 -> 7 | I160: ='1-1000'!K5057 -> Badhoevedorp (1) | J160: ='1-1000'!AH5057 -> 548 | K160: A5057 | L160: : | M160: AK5088 | N160: 452
A161: x | B161: 160 | C161: 16 | H161: ='1-1000'!AD5089 -> 2 | I161: ='1-1000'!K5089 -> Barendrecht | J161: ='1-1000'!AH5089 -> 298 | K161: A5089 | L161: : | M161: AK5120 | N161: 702
B162: 161 | C162: 17 | H162: ='1-1000'!AD5121 -> 4 | I162: ='1-1000'!K5121 -> Barneveld | J162: ='1-1000'!AH5121 -> 396 | K162: A5121 | L162: : | M162: AK5152 | N162: 604
B163: 162 | C163: 17 | H163: ='1-1000'!AD5153 -> 8 | I163: ='1-1000'!K5153 -> Bnv - Raadhuisplein 55 | J163: ='1-1000'!AH5153 -> 583 | K163: A5153 | L163: : | M163: AK5184 | N163: 417
B164: 163 | C164: 17 | H164: ='1-1000'!AD5185 -> 6 | I164: ='1-1000'!K5185 -> Bnv - Raadhuisplein 55 (1) | J164: ='1-1000'!AH5185 -> 621 | K164: A5185 | L164: : | M164: AK5216 | N164: 379
B165: 164 | C165: 17 | H165: ='1-1000'!AD5217 -> 6 | I165: ='1-1000'!K5217 -> Bnv - Raadhuisplein 55 (2) | J165: ='1-1000'!AH5217 -> 699 | K165: A5217 | L165: : | M165: AK5248 | N165: 301
B166: 165 | C166: 17 | H166: ='1-1000'!AD5249 -> 5 | I166: ='1-1000'!K5249 -> Bedum | J166: ='1-1000'!AH5249 -> 509 | K166: A5249 | L166: : | M166: AK5280 | N166: 491
B167: 166 | C167: 17 | H167: ='1-1000'!AD5281 -> 0 | I167: ='1-1000'!K5281 -> Beek Lb | J167: ='1-1000'!AH5281 -> 260 | K167: A5281 | L167: : | M167: AK5312 | N167: 740
B168: 167 | C168: 17 | H168: ='1-1000'!AD5313 -> 8 | I168: ='1-1000'!K5313 -> Beek Lb (1) | J168: ='1-1000'!AH5313 -> 651 | K168: A5313 | L168: : | M168: AK5344 | N168: 349
B169: 168 | C169: 17 | H169: ='1-1000'!AD5345 -> 3 | I169: ='1-1000'!K5345 -> Beekbergen | J169: ='1-1000'!AH5345 -> 460 | K169: A5345 | L169: : | M169: AK5376 | N169: 540
B170: 169 | C170: 17 | H170: ='1-1000'!AD5377 -> 6 | I170: ='1-1000'!K5377 -> Beek en Donk | J170: ='1-1000'!AH5377 -> 537 | K170: A5377 | L170: : | M170: AK5408 | N170: 463
B171: 170 | C171: 17 | H171: ='1-1000'!AD5409 -> 7 | I171: ='1-1000'!K5409 -> Beetsterzwaag | J171: ='1-1000'!AH5409 -> 510 | K171: A5409 | L171: : | M171: AK5440 | N171: 490
B172: 171 | C172: 18 | H172: ='1-1000'!AD5441 -> 2 | I172: ='1-1000'!K5441 -> Beilen | J172: ='1-1000'!AH5441 -> 367 | K172: A5441 | L172: : | M172: AK5472 | N172: 633
B173: 172 | C173: 18 | H173: ='1-1000'!AD5473 -> 2 | I173: ='1-1000'!K5473 -> Bemmel | J173: ='1-1000'!AH5473 -> 396 | K173: A5473 | L173: : | M173: AK5504 | N173: 604
B174: 173 | C174: 18 | H174: ='1-1000'!AD5505 -> 4 | I174: ='1-1000'!K5505 -> Bennekom | J174: ='1-1000'!AH5505 -> 312 | K174: A5505 | L174: : | M174: AK5536 | N174: 688
B175: 174 | C175: 18 | H175: ='1-1000'!AD5537 -> 6 | I175: ='1-1000'!K5537 -> Bennekom (1) | J175: ='1-1000'!AH5537 -> 457 | K175: A5537 | L175: : | M175: AK5568 | N175: 543
B176: 175 | C176: 18 | H176: ='1-1000'!AD5569 -> 6 | I176: ='1-1000'!K5569 -> Bergen Nh | J176: ='1-1000'!AH5569 -> 286 | K176: A5569 | L176: : | M176: AK5600 | N176: 714
B177: 176 | C177: 18 | H177: ='1-1000'!AD5601 -> 0 | I177: ='1-1000'!K5601 -> Bergen op Zoom | J177: ='1-1000'!AH5601 -> 74 | K177: A5601 | L177: : | M177: AK5632 | N177: 926
B178: 177 | C178: 18 | H178: ='1-1000'!AD5633 -> 2 | I178: ='1-1000'!K5633 -> Bergeijk | J178: ='1-1000'!AH5633 -> 401 | K178: A5633 | L178: : | M178: AK5664 | N178: 599
B179: 178 | C179: 18 | H179: ='1-1000'!AD5665 -> 6 | I179: ='1-1000'!K5665 -> Berghem | J179: ='1-1000'!AH5665 -> 556 | K179: A5665 | L179: : | M179: AK5696 | N179: 444
B180: 179 | C180: 18 | H180: ='1-1000'!AD5697 -> 3 | I180: ='1-1000'!K5697 -> Bergum | J180: ='1-1000'!AH5697 -> 375 | K180: A5697 | L180: : | M180: AK5728 | N180: 625
B181: 180 | C181: 18 | H181: ='1-1000'!AD5729 -> 2 | I181: ='1-1000'!K5729 -> Berkel en Rodenrijs | J181: ='1-1000'!AH5729 -> 411 | K181: A5729 | L181: : | M181: AK5760 | N181: 589
B182: 181 | C182: 19 | H182: ='1-1000'!AD5761 -> 3 | I182: ='1-1000'!K5761 -> Berkel Enschot | J182: ='1-1000'!AH5761 -> 458 | K182: A5761 | L182: : | M182: AK5792 | N182: 542
B183: 182 | C183: 19 | H183: ='1-1000'!AD5793 -> 4 | I183: ='1-1000'!K5793 -> Berlicum Nb | J183: ='1-1000'!AH5793 -> 386 | K183: A5793 | L183: : | M183: AK5824 | N183: 614
A184: x | B184: 183 | C184: 19 | H184: ='1-1000'!AD5825 -> 2 | I184: ='1-1000'!K5825 -> Best | J184: ='1-1000'!AH5825 -> 131 | K184: A5825 | L184: : | M184: AK5856 | N184: 869
B185: 184 | C185: 19 | H185: ='1-1000'!AD5857 -> 6 | I185: ='1-1000'!K5857 -> Best (1) | J185: ='1-1000'!AH5857 -> 596 | K185: A5857 | L185: : | M185: AK5888 | N185: 404
B186: 185 | C186: 19 | H186: ='1-1000'!AD5889 -> 5 | I186: ='1-1000'!K5889 -> Best (2) | J186: ='1-1000'!AH5889 -> 517 | K186: A5889 | L186: : | M186: AK5920 | N186: 483
B187: 186 | C187: 19 | H187: ='1-1000'!AD5921 -> 7 | I187: ='1-1000'!K5921 -> Beuningen | J187: ='1-1000'!AH5921 -> 514 | K187: A5921 | L187: : | M187: AK5952 | N187: 486
B188: 187 | C188: 19 | H188: ='1-1000'!AD5953 -> 1 | I188: ='1-1000'!K5953 -> Beverwijk | J188: ='1-1000'!AH5953 -> 173 | K188: A5953 | L188: : | M188: AK5984 | N188: 827
B189: 188 | C189: 19 | H189: ='1-1000'!AD5985 -> 6 | I189: ='1-1000'!K5985 -> Bv - Wijkerbaan | J189: ='1-1000'!AH5985 -> 491 | K189: A5985 | L189: : | M189: AK6016 | N189: 509
B190: 189 | C190: 19 | H190: ='1-1000'!AD6017 -> 0 | I190: ='1-1000'!K6017 -> De Bilt | J190: ='1-1000'!AH6017 -> 190 | K190: A6017 | L190: : | M190: AK6048 | N190: 810
B191: 190 | H191: ='1-1000'!AD6049 -> 2 | I191: ='1-1000'!K6049 -> Bilthoven | J191: ='1-1000'!AH6049 -> 260 | K191: A6049 | L191: : | M191: AK6080 | N191: 740
B192: 191 | C192: 20 | H192: ='1-1000'!AD6081 -> 3 | I192: ='1-1000'!K6081 -> Bladel | J192: ='1-1000'!AH6081 -> 318 | K192: A6081 | L192: : | M192: AK6112 | N192: 682
B193: 192 | C193: 20 | H193: ='1-1000'!AD6113 -> 5 | I193: ='1-1000'!K6113 -> Bladel (10) | J193: ='1-1000'!AH6113 -> 646 | K193: A6113 | L193: : | M193: AK6144 | N193: 354
B194: 193 | C194: 20 | H194: ='1-1000'!AD6145 -> 4 | I194: ='1-1000'!K6145 -> Blaricum | J194: ='1-1000'!AH6145 -> 430 | K194: A6145 | L194: : | M194: AK6176 | N194: 570 | O194: =IF(J194=0,"COMPL","") -> 
B195: 194 | C195: 20 | H195: ='1-1000'!AD6177 -> 3 | I195: ='1-1000'!K6177 -> Bleiswijk | J195: ='1-1000'!AH6177 -> 249 | K195: A6177 | L195: : | M195: AK6208 | N195: =1000-J195 -> 751
B196: 195 | C196: 20 | H196: ='1-1000'!AD6209 -> 6 | I196: ='1-1000'!K6209 -> Bloemendaal | J196: ='1-1000'!AH6209 -> 584 | K196: A6209 | L196: : | M196: AK6240 | N196: 416
B197: 196 | C197: 20 | H197: ='1-1000'!AD6241 -> 0 | I197: ='1-1000'!K6241 -> Bodegraven | J197: ='1-1000'!AH6241 -> 108 | K197: A6241 | L197: : | M197: AK6272 | N197: 892
B198: 197 | C198: 20 | H198: ='1-1000'!AD6273 -> 5 | I198: ='1-1000'!K6273 -> Boekel | J198: ='1-1000'!AH6273 -> 469 | K198: A6273 | L198: : | M198: AK6304 | N198: 531
B199: 198 | C199: 20 | H199: ='1-1000'!AD6305 -> 3 | I199: ='1-1000'!K6305 -> Bolsward | J199: ='1-1000'!AH6305 -> 314 | K199: A6305 | L199: : | M199: AK6336 | N199: 686
B200: 199 | C200: 20 | H200: ='1-1000'!AD6337 -> 7 | I200: ='1-1000'!K6337 -> Bolsward (1) | J200: ='1-1000'!AH6337 -> 520 | K200: A6337 | L200: : | M200: AK6368 | N200: 480
... 842 more rows

Sheet 1-1000
B1: Terug | K1: Aalsmeer | AD1: =SUMPRODUCT((MOD(B3:AJ31,100)=0)*(B3:AJ31<1000)*(B3:AJ31<>"")) -> 0 | AF1: MANCO: | AH1: =COUNT(B3:AJ31) -> 122
B3: 1 | F3: 5 | R3: 17 | Z3: 25 | AF3: 31 | AG3: 32 | AI3: 34 | AJ3: 35
C4: 37 | E4: 39 | L4: 46 | R4: 52 | W4: 57
Q5: 86 | S5: 88 | T5: 89 | AF5: 101
Y6: 129 | AD6: 134 | AG6: 137
F7: 145 | U7: 160
D8: 178 | AJ8: 210
K9: 220 | N9: 223
C10: 247 | J10: 254 | N10: 258 | W10: 267 | X10: 268 | Z10: 270 | AH10: 278
C11: 282 | L11: 291 | P11: 295 | R11: 297 | V11: 301
E12: 319 | M12: 327 | AG12: 347 | AJ12: 350
F13: 355 | J13: 359 | P13: 365 | W13: 372
B14: 386 | V14: 406 | AC14: 413 | AJ14: 420
N15: 433 | W15: 442 | AF15: 451 | AJ15: 455
D16: 458 | F16: 460 | T16: 474 | V16: 476 | AE16: 485
D18: 528 | J18: 534 | O18: 539
U19: 580 | X19: 583 | Y19: 584 | AG19: 592
O20: 609 | AA20: 621 | AE20: 625 | AG20: 627
F21: 635 | T21: 649 | AB21: 657
Q22: 681 | X22: 688 | Z22: 690 | AE22: 695 | AG22: 697
V23: 721 | AE23: 730 | AI23: 734
F24: 740 | G24: 741 | Q24: 751 | T24: 754 | AA24: 761
J25: 779 | U25: 790 | AC25: 798 | AH25: 803
K26: 815 | O26: 819 | U26: 825 | Z26: 830 | AA26: 831 | AB26: 832 | AI26: 839
C27: 842 | K27: 850 | T27: 859 | AB27: 867 | AJ27: 875
C28: 877 | H28: 882 | K28: 885 | S28: 893 | AC28: 903
F29: 915 | AA29: 936
D30: 948 | H30: 952 | I30: 953 | K30: 955 | O30: 959 | T30: 964 | Z30: 970
D31: 983 | H31: 987 | J31: 989 | L31: 991 | P31: 995 | R31: 997
B33: Terug | K33: Aalten | AD33: =SUMPRODUCT((MOD(B35:AJ63,100)=0)*(B35:AJ63<1000)*(B35:AJ63<>"")) -> 3 | AF33: MANCO: | AH33: =COUNT(B35:AJ63) -> 344
C35: 2 | E35: 4 | G35: 6 | H35: 7 | J35: 9 | K35: 10 | N35: 13 | O35: 14 | Q35: 16 | R35: 17 | U35: 20 | V35: 21 | W35: 22 | AA35: 26 | AC35: 28 | AD35: 29 | AE35: 30 | AF35: 31 | AH35: 33 | AI35: 34
B36: 36 | C36: 37 | J36: 44 | N36: 48 | Q36: 51 | R36: 52 | U36: 55 | Y36: 59 | AC36: 63 | AF36: 66
C37: 72 | F37: 75 | G37: 76 | J37: 79 | K37: 80 | N37: 83 | P37: 85 | Z37: 95 | AA37: 96 | AB37: 97 | AC37: 98 | AF37: 101
E38: 109 | H38: 112 | P38: 120 | Q38: 121 | R38: 122 | T38: 124 | X38: 128 | AE38: 135
E39: 144 | F39: 145 | G39: 146 | I39: 148 | T39: 159 | W39: 162 | Y39: 164 | Z39: 165 | AA39: 166 | AC39: 168 | AE39: 170 | AG39: 172 | AI39: 174 | AJ39: 175
D40: 178 | G40: 181 | H40: 182 | K40: 185 | N40: 188 | O40: 189 | Q40: 191 | R40: 192 | U40: 195 | W40: 197 | AD40: 204 | AE40: 205 | AI40: 209
C41: 212 | I41: 218 | M41: 222 | O41: 224 | Y41: 234 | AB41: 237 | AC41: 238 | AD41: 239 | AJ41: 245
F42: 250 | G42: 251 | H42: 252 | L42: 256 | M42: 257 | O42: 259 | Q42: 261 | R42: 262 | X42: 268 | Y42: 269 | AF42: 276 | AH42: 278
E43: 284 | F43: 285 | J43: 289 | N43: 293 | O43: 294 | Y43: 304 | Z43: 305 | AA43: 306 | AB43: 307 | AD43: 309 | AH43: 313 | AJ43: 315
C44: 317 | D44: 318 | F44: 320 | H44: 322 | K44: 325 | O44: 329 | T44: 334 | U44: 335 | X44: 338 | AD44: 344 | AF44: 346 | AG44: 347 | AJ44: 350
B45: 351 | D45: 353 | K45: 360 | T45: 369 | V45: 371 | Y45: 374 | AA45: 376 | AE45: 380
E46: 389 | H46: 392 | J46: 394 | P46: 400 | R46: 402 | S46: 403 | Z46: 410 | AA46: 411 | AE46: 415 | AG46: 417 | AH46: 418 | AI46: 419 | AJ46: 420
E47: 424 | F47: 425 | M47: 432 | O47: 434 | S47: 438 | U47: 440 | Y47: 444 | AC47: 448 | AE47: 450 | AH47: 453
D48: 458 | J48: 464 | K48: 465 | M48: 467 | Q48: 471 | V48: 476 | AC48: 483 | AF48: 486
B49: 491 | C49: 492 | I49: 498 | N49: 503 | T49: 509 | AC49: 518 | AD49: 519 | AF49: 521
G50: 531 | J50: 534 | L50: 536 | V50: 546 | AB50: 552 | AD50: 554 | AG50: 557 | AJ50: 560
D51: 563 | E51: 564 | F51: 565 | I51: 568 | J51: 569 | K51: 570 | L51: 571 | R51: 577 | S51: 578 | T51: 579 | W51: 582 | AF51: 591
E52: 599 | K52: 605 | M52: 607 | N52: 608 | P52: 610 | Q52: 611 | R52: 612 | Y52: 619 | Z52: 620 | AA52: 621 | AD52: 624 | AE52: 625 | AF52: 626
B53: 631 | R53: 647 | V53: 651 | AC53: 658 | AE53: 660 | AF53: 661 | AG53: 662
B54: 666 | E54: 669 | I54: 673 | L54: 676 | V54: 686 | Z54: 690 | AA54: 691 | AC54: 693 | AE54: 695 | AF54: 696 | AH54: 698 | AI54: 699 | AJ54: 700
G55: 706 | J55: 709 | L55: 711 | Q55: 716 | T55: 719 | U55: 720 | W55: 722 | Y55: 724 | AF55: 731 | AJ55: 735
B56: 736 | E56: 739 | J56: 744 | K56: 745 | P56: 750 | S56: 753 | U56: 755 | W56: 757 | Y56: 759 | AC56: 763 | AD56: 764 | AE56: 765 | AG56: 767 | AH56: 768 | AI56: 769
E57: 774 | I57: 778 | S57: 788 | U57: 790 | W57: 792 | AA57: 796
B58: 806 | C58: 807 | F58: 810 | H58: 812 | J58: 814 | O58: 819 | Q58: 821 | S58: 823 | U58: 825 | V58: 826 | W58: 827 | AB58: 832 | AE58: 835 | AI58: 839
E59: 844 | F59: 845 | G59: 846 | J59: 849 | K59: 850 | L59: 851 | M59: 852 | O59: 854 | Q59: 856 | S59: 858 | T59: 859 | U59: 860 | V59: 861 | Y59: 864 | AA59: 866 | AB59: 867 | AC59: 868 | AD59: 869 | AF59: 871 | AH59: 873 | AJ59: 875
C60: 877 | D60: 878 | E60: 879 | F60: 880 | K60: 885 | N60: 888 | O60: 889 | Q60: 891 | R60: 892 | S60: 893 | T60: 894 | Z60: 900 | AC60: 903 | AE60: 905 | AF60: 906 | AJ60: 910
B61: 911 | C61: 912 | D61: 913 | F61: 915 | G61: 916 | I61: 918 | M61: 922 | N61: 923 | O61: 924 | P61: 925 | T61: 929 | W61: 932 | AA61: 936 | AD61: 939 | AI61: 944 | AJ61: 945
C62: 947 | E62: 949 | K62: 955 | L62: 956 | O62: 959 | Q62: 961 | X62: 968 | AA62: 971 | AD62: 974 | AF62: 976 | AG62: 977 | AH62: 978 | AI62: 979
C63: 982 | D63: 983 | G63: 986 | I63: 988 | M63: 992 | O63: 994 | P63: 995 | R63: 997 | T63: 999 | U63: 1000
B65: Terug | K65: Ter Aar | AD65: =SUMPRODUCT((MOD(B67:AJ95,100)=0)*(B67:AJ95<1000)*(B67:AJ95<>"")) -> 6 | AF65: MANCO: | AH65: =COUNT(B67:AJ95) -> 494
B67: 1 | C67: 2 | D67: 3 | G67: 6 | H67: 7 | I67: 8 | J67: 9 | L67: 11 | M67: 12 | N67: 13 | O67: 14 | P67: 15 | Q67: 16 | S67: 18 | T67: 19 | V67: 21 | X67: 23 | AB67: 27 | AE67: 30 | AH67: 33 | AI67: 34
B68: 36 | C68: 37 | D68: 38 | F68: 40 | G68: 41 | K68: 45 | L68: 46 | M68: 47 | N68: 48 | O68: 49 | S68: 53 | Z68: 60 | AB68: 62 | AD68: 64 | AE68: 65 | AH68: 68 | AI68: 69 | AJ68: 70
B69: 71 | C69: 72 | E69: 74 | H69: 77 | M69: 82 | N69: 83 | P69: 85 | S69: 88 | T69: 89 | V69: 91 | X69: 93 | Y69: 94 | AA69: 96 | AB69: 97 | AD69: 99 | AE69: 100 | AG69: 102 | AH69: 103 | AI69: 104
B70: 106 | C70: 107 | D70: 108 | E70: 109 | F70: 110 | G70: 111 | H70: 112 | I70: 113 | J70: 114 | K70: 115 | N70: 118 | O70: 119 | P70: 120 | S70: 123 | T70: 124 | U70: 125 | V70: 126 | Y70: 129 | AA70: 131 | AC70: 133 | AI70: 139
B71: 141 | C71: 142 | D71: 143 | F71: 145 | G71: 146 | H71: 147 | J71: 149 | L71: 151 | M71: 152 | P71: 155 | S71: 158 | W71: 162 | Y71: 164 | AB71: 167 | AD71: 169 | AE71: 170 | AG71: 172 | AH71: 173
E72: 179 | F72: 180 | I72: 183 | K72: 185 | L72: 186 | M72: 187 | N72: 188 | P72: 190 | R72: 192 | W72: 197 | Y72: 199 | Z72: 200 | AA72: 201 | AD72: 204 | AH72: 208 | AI72: 209 | AJ72: 210
B73: 211 | E73: 214 | F73: 215 | G73: 216 | H73: 217 | I73: 218 | J73: 219 | K73: 220 | L73: 221 | N73: 223 | P73: 225 | T73: 229 | V73: 231 | AC73: 238 | AE73: 240 | AG73: 242 | AH73: 243 | AI73: 244 | AJ73: 245
F74: 250 | H74: 252 | K74: 255 | N74: 258 | P74: 260 | S74: 263 | T74: 264 | U74: 265 | W74: 267 | X74: 268 | Y74: 269 | Z74: 270 | AA74: 271 | AB74: 272 | AC74: 273 | AE74: 275
B75: 281 | G75: 286 | H75: 287 | I75: 288 | J75: 289 | L75: 291 | M75: 292 | Q75: 296 | T75: 299 | U75: 300 | Z75: 305 | AF75: 311 | AG75: 312 | AI75: 314 | AJ75: 315
D76: 318 | E76: 319 | F76: 320 | H76: 322 | I76: 323 | K76: 325 | O76: 329 | W76: 337 | Y76: 339 | Z76: 340 | AA76: 341 | AE76: 345 | AG76: 347 | AJ76: 350
C77: 352 | D77: 353 | F77: 355 | H77: 357 | L77: 361 | N77: 363 | P77: 365 | Q77: 366 | R77: 367 | S77: 368 | W77: 372 | Y77: 374 | AC77: 378 | AE77: 380 | AH77: 383 | AI77: 384
B78: 386 | D78: 388 | E78: 389 | F78: 390 | G78: 391 | I78: 393 | K78: 395 | L78: 396 | N78: 398 | P78: 400 | Q78: 401 | R78: 402 | T78: 404 | V78: 406 | Z78: 410 | AA78: 411 | AE78: 415 | AF78: 416 | AG78: 417 | AI78: 419 | AJ78: 420
B79: 421 | C79: 422 | D79: 423 | E79: 424 | G79: 426 | H79: 427 | N79: 433 | O79: 434 | P79: 435 | Q79: 436 | R79: 437 | T79: 439 | U79: 440 | X79: 443 | AE79: 450
B80: 456 | D80: 458 | F80: 460 | G80: 461 | H80: 462 | I80: 463 | J80: 464 | K80: 465 | L80: 466 | M80: 467 | N80: 468 | O80: 469 | Q80: 471 | T80: 474 | V80: 476 | W80: 477 | Y80: 479 | AA80: 481 | AB80: 482 | AC80: 483 | AD80: 484 | AE80: 485 | AF80: 486 | AG80: 487 | AJ80: 490
C81: 492 | D81: 493 | F81: 495 | G81: 496 | H81: 497 | L81: 501 | M81: 502 | P81: 505 | W81: 512 | X81: 513 | Y81: 514 | Z81: 515 | AC81: 518 | AD81: 519 | AF81: 521 | AG81: 522 | AH81: 523 | AJ81: 525
C82: 527 | I82: 533 | J82: 534 | K82: 535 | L82: 536 | P82: 540 | Q82: 541 | S82: 543 | T82: 544 | Y82: 549 | Z82: 550 | AA82: 551 | AC82: 553 | AD82: 554 | AG82: 557 | AI82: 559
B83: 561 | E83: 564 | F83: 565 | H83: 567 | I83: 568 | J83: 569 | K83: 570 | P83: 575 | R83: 577 | S83: 578 | T83: 579 | V83: 581 | W83: 582 | Z83: 585 | AA83: 586 | AC83: 588 | AF83: 591 | AG83: 592 | AJ83: 595
B84: 596 | D84: 598 | E84: 599 | F84: 600 | I84: 603 | J84: 604 | K84: 605 | L84: 606 | P84: 610 | R84: 612 | S84: 613 | T84: 614 | U84: 615 | W84: 617 | X84: 618 | Z84: 620 | AA84: 621 | AB84: 622 | AE84: 625 | AF84: 626 | AI84: 629
B85: 631 | F85: 635 | G85: 636 | H85: 637 | I85: 638 | K85: 640 | M85: 642 | N85: 643 | O85: 644 | Q85: 646 | R85: 647 | S85: 648 | U85: 650 | X85: 653 | Y85: 654 | Z85: 655 | AA85: 656 | AC85: 658 | AD85: 659 | AG85: 662 | AH85: 663 | AJ85: 665
G86: 671 | H86: 672 | M86: 677 | O86: 679 | Q86: 681 | R86: 682 | T86: 684 | V86: 686 | W86: 687 | X86: 688 | Y86: 689 | AE86: 695 | AF86: 696 | AI86: 699
B87: 701 | D87: 703 | G87: 706 | J87: 709 | M87: 712 | P87: 715 | R87: 717 | S87: 718 | T87: 719 | W87: 722 | X87: 723 | Z87: 725 | AD87: 729
E88: 739 | G88: 741 | I88: 743 | K88: 745 | O88: 749 | R88: 752 | T88: 754 | U88: 755 | V88: 756 | X88: 758 | Y88: 759 | AA88: 761 | AD88: 764 | AE88: 765 | AG88: 767 | AH88: 768
C89: 772 | D89: 773 | E89: 774 | K89: 780 | L89: 781 | M89: 782 | S89: 788 | AB89: 797 | AI89: 804
B90: 806 | F90: 810 | H90: 812 | M90: 817 | Q90: 821 | V90: 826 | Y90: 829 | AC90: 833 | AD90: 834 | AF90: 836 | AH90: 838
B91: 841 | C91: 842 | D91: 843 | E91: 844 | F91: 845 | G91: 846 | H91: 847 | I91: 848 | J91: 849 | M91: 852 | O91: 854 | S91: 858 | U91: 860 | W91: 862 | X91: 863 | Y91: 864 | AE91: 870 | AF91: 871 | AG91: 872 | AH91: 873
C92: 877 | D92: 878 | G92: 881 | J92: 884 | L92: 886 | M92: 887 | O92: 889 | R92: 892 | T92: 894 | U92: 895 | Z92: 900 | AA92: 901 | AF92: 906 | AH92: 908
B93: 911 | D93: 913 | F93: 915 | J93: 919 | M93: 922 | P93: 925 | Q93: 926 | R93: 927 | S93: 928 | W93: 932 | X93: 933 | Y93: 934 | AA93: 936 | AB93: 937 | AC93: 938 | AD93: 939 | AG93: 942 | AH93: 943 | AI93: 944
D94: 948 | E94: 949 | L94: 956 | M94: 957 | P94: 960 | Q94: 961 | T94: 964 | V94: 966 | AC94: 973 | AD94: 974 | AE94: 975 | AF94: 976
B95: 981 | D95: 983 | E95: 984 | F95: 985 | G95: 986 | H95: 987 | I95: 988 | J95: 989 | L95: 991 | N95: 993 | P95: 995 | Q95: 996 | S95: 998 | T95: 999 | U95: 1000
B97: Terug | K97: Aarle-Rixtel | AD97: =SUMPRODUCT((MOD(B99:AJ127,100)=0)*(B99:AJ127<1000)*(B99:AJ127<>"")) -> 7 | AF97: MANCO: | AH97: =COUNT(B99:AJ127) -> 640
B99: 1 | C99: 2 | D99: 3 | E99: 4 | F99: 5 | G99: 6 | H99: 7 | I99: 8 | J99: 9 | L99: 11 | N99: 13 | O99: 14 | P99: 15 | Q99: 16 | R99: 17 | S99: 18 | U99: 20 | V99: 21 | X99: 23 | Z99: 25 | AA99: 26 | AB99: 27 | AC99: 28 | AD99: 29 | AE99: 30 | AF99: 31 | AG99: 32 | AH99: 33 | AJ99: 35
B100: 36 | C100: 37 | D100: 38 | F100: 40 | G100: 41 | H100: 42 | K100: 45 | M100: 47 | N100: 48 | P100: 50 | Q100: 51 | S100: 53 | T100: 54 | U100: 55 | V100: 56 | W100: 57 | X100: 58 | Y100: 59 | AA100: 61 | AB100: 62 | AC100: 63 | AD100: 64 | AE100: 65 | AH100: 68 | AI100: 69
B101: 71 | D101: 73 | I101: 78 | K101: 80 | L101: 81 | M101: 82 | O101: 84 | P101: 85 | Q101: 86 | R101: 87 | S101: 88 | T101: 89 | W101: 92 | Y101: 94 | Z101: 95 | AB101: 97 | AC101: 98 | AE101: 100 | AG101: 102 | AJ101: 105
C102: 107 | D102: 108 | E102: 109 | F102: 110 | G102: 111 | H102: 112 | I102: 113 | J102: 114 | K102: 115 | L102: 116 | N102: 118 | O102: 119 | Q102: 121 | R102: 122 | T102: 124 | U102: 125 | V102: 126 | W102: 127 | Z102: 130 | AB102: 132 | AC102: 133 | AD102: 134 | AG102: 137 | AI102: 139 | AJ102: 140
E103: 144 | F103: 145 | G103: 146 | H103: 147 | I103: 148 | K103: 150 | L103: 151 | M103: 152 | O103: 154 | P103: 155 | R103: 157 | S103: 158 | T103: 159 | V103: 161 | Z103: 165 | AB103: 167 | AC103: 168 | AD103: 169 | AG103: 172 | AH103: 173 | AI103: 174 | AJ103: 175
C104: 177 | D104: 178 | E104: 179 | F104: 180 | G104: 181 | I104: 183 | J104: 184 | K104: 185 | M104: 187 | N104: 188 | P104: 190 | Q104: 191 | R104: 192 | S104: 193 | T104: 194 | U104: 195 | V104: 196 | W104: 197 | X104: 198 | AB104: 202 | AC104: 203 | AE104: 205 | AH104: 208 | AJ104: 210
B105: 211 | C105: 212 | E105: 214 | F105: 215 | G105: 216 | H105: 217 | I105: 218 | J105: 219 | K105: 220 | M105: 222 | N105: 223 | P105: 225 | Q105: 226 | S105: 228 | U105: 230 | V105: 231 | W105: 232 | Y105: 234 | Z105: 235 | AA105: 236 | AB105: 237 | AC105: 238 | AE105: 240 | AG105: 242 | AI105: 244
E106: 249 | F106: 250 | J106: 254 | K106: 255 | L106: 256 | M106: 257 | O106: 259 | Q106: 261 | S106: 263 | T106: 264 | V106: 266 | W106: 267 | X106: 268 | Y106: 269 | Z106: 270 | AA106: 271 | AB106: 272 | AC106: 273 | AD106: 274 | AF106: 276 | AG106: 277 | AH106: 278 | AI106: 279
C107: 282 | D107: 283 | G107: 286 | H107: 287 | J107: 289 | L107: 291 | M107: 292 | N107: 293 | O107: 294 | P107: 295 | Q107: 296 | S107: 298 | U107: 300 | X107: 303 | Z107: 305 | AB107: 307 | AC107: 308 | AD107: 309 | AE107: 310 | AH107: 313 | AI107: 314 | AJ107: 315
B108: 316 | C108: 317 | D108: 318 | E108: 319 | G108: 321 | J108: 324 | K108: 325 | L108: 326 | N108: 328 | P108: 330 | Q108: 331 | S108: 333 | T108: 334 | U108: 335 | V108: 336 | Y108: 339 | AA108: 341 | AB108: 342 | AF108: 346 | AG108: 347 | AI108: 349
B109: 351 | D109: 353 | E109: 354 | F109: 355 | I109: 358 | L109: 361 | N109: 363 | O109: 364 | Q109: 366 | U109: 370 | V109: 371 | X109: 373 | Z109: 375 | AA109: 376 | AB109: 377 | AC109: 378 | AF109: 381 | AJ109: 385
B110: 386 | C110: 387 | E110: 389 | F110: 390 | G110: 391 | H110: 392 | I110: 393 | K110: 395 | O110: 399 | P110: 400 | Q110: 401 | S110: 403 | T110: 404 | U110: 405 | V110: 406 | W110: 407 | X110: 408 | Z110: 410 | AA110: 411 | AB110: 412 | AD110: 414 | AE110: 415 | AG110: 417 | AH110: 418 | AI110: 419
E111: 424 | F111: 425 | G111: 426 | H111: 427 | K111: 430 | L111: 431 | N111: 433 | P111: 435 | Q111: 436 | T111: 439 | V111: 441 | X111: 443 | Y111: 444 | Z111: 445 | AA111: 446 | AD111: 449 | AE111: 450 | AF111: 451 | AG111: 452 | AI111: 454 | AJ111: 455
B112: 456 | D112: 458 | E112: 459 | F112: 460 | G112: 461 | I112: 463 | K112: 465 | L112: 466 | M112: 467 | N112: 468 | S112: 473 | T112: 474 | U112: 475 | W112: 477 | X112: 478 | Y112: 479 | Z112: 480 | AA112: 481 | AE112: 485 | AG112: 487 | AH112: 488 | AI112: 489 | AJ112: 490
B113: 491 | D113: 493 | E113: 494 | F113: 495 | G113: 496 | H113: 497 | I113: 498 | J113: 499 | K113: 500 | L113: 501 | M113: 502 | P113: 505 | Q113: 506 | T113: 509 | X113: 513 | Y113: 514 | Z113: 515 | AA113: 516 | AD113: 519 | AF113: 521 | AJ113: 525
B114: 526 | C114: 527 | D114: 528 | E114: 529 | F114: 530 | G114: 531 | I114: 533 | K114: 535 | M114: 537 | O114: 539 | P114: 540 | Q114: 541 | T114: 544 | U114: 545 | V114: 546 | W114: 547 | X114: 548 | Z114: 550 | AA114: 551 | AB114: 552 | AD114: 554 | AE114: 555 | AF114: 556 | AG114: 557 | AH114: 558 | AI114: 559
C115: 562 | F115: 565 | H115: 567 | J115: 569 | M115: 572 | N115: 573 | O115: 574 | P115: 575 | Q115: 576 | R115: 577 | S115: 578 | T115: 579 | V115: 581 | W115: 582 | AC115: 588 | AD115: 589 | AF115: 591 | AI115: 594 | AJ115: 595
F116: 600 | I116: 603 | K116: 605 | N116: 608 | P116: 610 | Q116: 611 | T116: 614 | U116: 615 | Y116: 619 | AB116: 622 | AD116: 624 | AE116: 625 | AF116: 626 | AG116: 627
C117: 632 | D117: 633 | E117: 634 | F117: 635 | G117: 636 | H117: 637 | I117: 638 | J117: 639 | K117: 640 | M117: 642 | N117: 643 | O117: 644 | P117: 645 | Q117: 646 | T117: 649 | U117: 650 | V117: 651 | W117: 652 | AA117: 656 | AB117: 657 | AC117: 658 | AD117: 659 | AF117: 661 | AG117: 662 | AI117: 664
B118: 666 | C118: 667 | F118: 670 | G118: 671 | H118: 672 | I118: 673 | L118: 676 | N118: 678 | O118: 679 | R118: 682 | S118: 683 | T118: 684 | U118: 685 | V118: 686 | X118: 688 | Y118: 689 | AA118: 691 | AB118: 692 | AC118: 693 | AE118: 695 | AH118: 698 | AI118: 699
C119: 702 | D119: 703 | E119: 704 | F119: 705 | H119: 707 | I119: 708 | L119: 711 | P119: 715 | S119: 718 | T119: 719 | U119: 720 | V119: 721 | W119: 722 | X119: 723 | Y119: 724 | Z119: 725 | AA119: 726 | AC119: 728 | AD119: 729 | AE119: 730 | AH119: 733 | AI119: 734 | AJ119: 735
B120: 736 | C120: 737 | D120: 738 | F120: 740 | G120: 741 | H120: 742 | I120: 743 | J120: 744 | L120: 746 | S120: 753 | T120: 754 | V120: 756 | W120: 757 | Y120: 759 | AA120: 761 | AC120: 763 | AD120: 764 | AE120: 765 | AF120: 766 | AG120: 767 | AH120: 768 | AI120: 769 | AJ120: 770
C121: 772 | F121: 775 | G121: 776 | I121: 778 | J121: 779 | K121: 780 | N121: 783 | O121: 784 | P121: 785 | R121: 787 | T121: 789 | U121: 790 | V121: 791 | W121: 792 | X121: 793 | Z121: 795 | AB121: 797 | AC121: 798 | AE121: 800 | AF121: 801 | AG121: 802 | AH121: 803 | AJ121: 805
C122: 807 | D122: 808 | E122: 809 | F122: 810 | G122: 811 | H122: 812 | I122: 813 | K122: 815 | M122: 817 | P122: 820 | Q122: 821 | S122: 823 | T122: 824 | V122: 826 | X122: 828 | Y122: 829 | AA122: 831 | AB122: 832 | AC122: 833 | AE122: 835 | AF122: 836 | AJ122: 840
C123: 842 | D123: 843 | E123: 844 | H123: 847 | I123: 848 | K123: 850 | L123: 851 | M123: 852 | N123: 853 | P123: 855 | Q123: 856 | S123: 858 | T123: 859 | W123: 862 | X123: 863 | Y123: 864 | AB123: 867 | AD123: 869 | AE123: 870 | AG123: 872 | AI123: 874
H124: 882 | I124: 883 | K124: 885 | L124: 886 | O124: 889 | P124: 890 | S124: 893 | U124: 895 | V124: 896 | Y124: 899 | Z124: 900 | AA124: 901 | AB124: 902 | AC124: 903 | AF124: 906 | AH124: 908 | AI124: 909 | AJ124: 910
D125: 913 | F125: 915 | G125: 916 | H125: 917 | I125: 918 | J125: 919 | K125: 920 | L125: 921 | N125: 923 | O125: 924 | P125: 925 | R125: 927 | T125: 929 | U125: 930 | Y125: 934 | AA125: 936 | AC125: 938 | AE125: 940 | AF125: 941 | AG125: 942 | AH125: 943 | AI125: 944
D126: 948 | E126: 949 | F126: 950 | G126: 951 | H126: 952 | I126: 953 | J126: 954 | K126: 955 | L126: 956 | N126: 958 | O126: 959 | P126: 960 | Q126: 961 | T126: 964 | U126: 965 | V126: 966 | W126: 967 | X126: 968 | Y126: 969 | Z126: 970 | AD126: 974 | AE126: 975 | AI126: 979 | AJ126: 980
B127: 981 | E127: 984 | F127: 985 | G127: 986 | K127: 990 | L127: 991 | M127: 992 | N127: 993 | O127: 994 | P127: 995 | R127: 997 | S127: 998 | T127: 999 | U127: 1000
B129: Terug | K129: Abcoude | AD129: =SUMPRODUCT((MOD(B131:AJ159,100)=0)*(B131:AJ159<1000)*(B131:AJ159<>"")) -> 6 | AF129: MANCO: | AH129: =COUNT(B131:AJ159) -> 574
B131: 1 | E131: 4 | G131: 6 | K131: 10 | M131: 12 | O131: 14 | Q131: 16 | S131: 18 | T131: 19 | U131: 20 | V131: 21 | AA131: 26 | AC131: 28 | AD131: 29 | AE131: 30 | AG131: 32 | AH131: 33
D132: 38 | E132: 39 | I132: 43 | J132: 44 | L132: 46 | M132: 47 | N132: 48 | O132: 49 | P132: 50 | R132: 52 | S132: 53 | T132: 54 | V132: 56 | Z132: 60 | AA132: 61 | AB132: 62 | AC132: 63 | AE132: 65 | AH132: 68 | AI132: 69
B133: 71 | C133: 72 | E133: 74 | F133: 75 | G133: 76 | H133: 77 | I133: 78 | J133: 79 | L133: 81 | M133: 82 | N133: 83 | Q133: 86 | R133: 87 | S133: 88 | U133: 90 | W133: 92 | X133: 93 | Z133: 95 | AA133: 96 | AB133: 97 | AC133: 98 | AE133: 100 | AG133: 102 | AH133: 103 | AJ133: 105
B134: 106 | D134: 108 | E134: 109 | F134: 110 | H134: 112 | K134: 115 | M134: 117 | N134: 118 | O134: 119 | P134: 120 | Q134: 121 | S134: 123 | U134: 125 | W134: 127 | X134: 128 | AA134: 131 | AB134: 132 | AD134: 134 | AE134: 135 | AG134: 137 | AH134: 138 | AI134: 139 | AJ134: 140
B135: 141 | C135: 142 | D135: 143 | E135: 144 | G135: 146 | H135: 147 | I135: 148 | J135: 149 | K135: 150 | L135: 151 | P135: 155 | S135: 158 | T135: 159 | V135: 161 | W135: 162 | X135: 163 | Y135: 164 | Z135: 165 | AA135: 166 | AB135: 167 | AC135: 168 | AD135: 169 | AF135: 171 | AH135: 173 | AI135: 174 | AJ135: 175
B136: 176 | C136: 177 | F136: 180 | G136: 181 | H136: 182 | I136: 183 | K136: 185 | M136: 187 | P136: 190 | Q136: 191 | V136: 196 | W136: 197 | X136: 198 | Z136: 200 | AA136: 201 | AC136: 203 | AE136: 205
B137: 211 | C137: 212 | F137: 215 | I137: 218 | K137: 220 | L137: 221 | M137: 222 | O137: 224 | P137: 225 | R137: 227 | T137: 229 | U137: 230 | V137: 231 | W137: 232 | X137: 233 | AA137: 236 | AB137: 237 | AD137: 239 | AG137: 242 | AH137: 243 | AI137: 244 | AJ137: 245
C138: 247 | D138: 248 | F138: 250 | G138: 251 | H138: 252 | I138: 253 | J138: 254 | K138: 255 | L138: 256 | M138: 257 | N138: 258 | O138: 259 | Q138: 261 | S138: 263 | V138: 266 | W138: 267 | Z138: 270 | AA138: 271 | AC138: 273 | AE138: 275 | AF138: 276 | AG138: 277 | AH138: 278 | AI138: 279 | AJ138: 280
B139: 281 | D139: 283 | F139: 285 | H139: 287 | I139: 288 | K139: 290 | M139: 292 | O139: 294 | Q139: 296 | R139: 297 | U139: 300 | V139: 301 | X139: 303 | AA139: 306 | AB139: 307 | AC139: 308 | AE139: 310 | AH139: 313 | AI139: 314 | AJ139: 315
B140: 316 | G140: 321 | H140: 322 | J140: 324 | K140: 325 | L140: 326 | P140: 330 | R140: 332 | S140: 333 | U140: 335 | V140: 336 | Z140: 340 | AA140: 341 | AB140: 342 | AE140: 345 | AF140: 346 | AG140: 347 | AH140: 348 | AJ140: 350
B141: 351 | C141: 352 | D141: 353 | F141: 355 | G141: 356 | H141: 357 | I141: 358 | K141: 360 | L141: 361 | N141: 363 | O141: 364 | Q141: 366 | T141: 369 | U141: 370 | V141: 371 | X141: 373 | Z141: 375 | AD141: 379 | AF141: 381 | AH141: 383
B142: 386 | E142: 389 | F142: 390 | K142: 395 | O142: 399 | Q142: 401 | R142: 402 | S142: 403 | T142: 404 | U142: 405 | W142: 407 | Z142: 410 | AA142: 411 | AC142: 413 | AD142: 414 | AG142: 417 | AI142: 419 | AJ142: 420
E143: 424 | G143: 426 | I143: 428 | J143: 429 | P143: 435 | Q143: 436 | R143: 437 | T143: 439 | U143: 440 | W143: 442 | Y143: 444 | Z143: 445 | AA143: 446 | AB143: 447 | AC143: 448 | AH143: 453 | AI143: 454
C144: 457 | E144: 459 | F144: 460 | G144: 461 | H144: 462 | K144: 465 | L144: 466 | M144: 467 | N144: 468 | O144: 469 | Q144: 471 | R144: 472 | V144: 476 | AA144: 481 | AB144: 482 | AD144: 484 | AE144: 485 | AF144: 486 | AJ144: 490
B145: 491 | E145: 494 | H145: 497 | I145: 498 | L145: 501 | M145: 502 | O145: 504 | P145: 505 | Q145: 506 | T145: 509 | U145: 510 | V145: 511 | X145: 513 | Y145: 514 | AA145: 516 | AB145: 517 | AC145: 518 | AD145: 519 | AF145: 521 | AG145: 522 | AH145: 523
D146: 528 | E146: 529 | F146: 530 | I146: 533 | N146: 538 | P146: 540 | Q146: 541 | S146: 543 | T146: 544 | Y146: 549 | Z146: 550 | AA146: 551 | AC146: 553 | AD146: 554 | AG146: 557 | AH146: 558 | AI146: 559 | AJ146: 560
B147: 561 | D147: 563 | E147: 564 | F147: 565 | I147: 568 | J147: 569 | K147: 570 | M147: 572 | P147: 575 | Q147: 576 | R147: 577 | U147: 580 | V147: 581 | Y147: 584 | AC147: 588 | AE147: 590 | AF147: 591 | AG147: 592 | AI147: 594
B148: 596 | C148: 597 | E148: 599 | F148: 600 | G148: 601 | H148: 602 | I148: 603 | J148: 604 | K148: 605 | N148: 608 | Q148: 611 | U148: 615 | W148: 617 | X148: 618 | Y148: 619 | Z148: 620 | AA148: 621 | AB148: 622 | AE148: 625 | AF148: 626 | AH148: 628 | AI148: 629
B149: 631 | D149: 633 | E149: 634 | F149: 635 | G149: 636 | J149: 639 | L149: 641 | N149: 643 | O149: 644 | P149: 645 | Q149: 646 | R149: 647 | S149: 648 | V149: 651 | Z149: 655 | AA149: 656 | AB149: 657 | AC149: 658 | AD149: 659 | AG149: 662 | AI149: 664 | AJ149: 665
D150: 668 | F150: 670 | G150: 671 | H150: 672 | I150: 673 | J150: 674 | K150: 675 | M150: 677 | O150: 679 | S150: 683 | U150: 685 | Y150: 689 | AA150: 691 | AC150: 693 | AE150: 695 | AF150: 696 | AG150: 697 | AI150: 699 | AJ150: 700
D151: 703 | F151: 705 | G151: 706 | H151: 707 | I151: 708 | K151: 710 | M151: 712 | O151: 714 | V151: 721 | W151: 722 | Y151: 724 | AB151: 727 | AC151: 728 | AE151: 730 | AF151: 731 | AH151: 733 | AI151: 734 | AJ151: 735
E152: 739 | F152: 740 | G152: 741 | I152: 743 | J152: 744 | M152: 747 | N152: 748 | O152: 749 | P152: 750 | Q152: 751 | S152: 753 | U152: 755 | X152: 758 | AB152: 762 | AE152: 765 | AG152: 767 | AH152: 768 | AJ152: 770
C153: 772 | E153: 774 | G153: 776 | H153: 777 | M153: 782 | N153: 783 | O153: 784 | P153: 785 | Q153: 786 | S153: 788 | V153: 791 | Y153: 794 | Z153: 795 | AA153: 796 | AB153: 797 | AC153: 798 | AD153: 799 | AF153: 801 | AI153: 804 | AJ153: 805
D154: 808 | E154: 809 | F154: 810 | G154: 811 | H154: 812 | J154: 814 | K154: 815 | N154: 818 | O154: 819 | Q154: 821 | S154: 823 | V154: 826 | W154: 827 | Z154: 830 | AA154: 831 | AB154: 832 | AC154: 833 | AD154: 834 | AE154: 835 | AG154: 837
C155: 842 | E155: 844 | G155: 846 | I155: 848 | L155: 851 | N155: 853 | P155: 855 | Q155: 856 | R155: 857 | T155: 859 | U155: 860 | V155: 861 | W155: 862 | Y155: 864 | AA155: 866 | AC155: 868 | AD155: 869 | AI155: 874 | AJ155: 875
C156: 877 | F156: 880 | I156: 883 | K156: 885 | L156: 886 | N156: 888 | Q156: 891 | S156: 893 | T156: 894 | U156: 895 | W156: 897 | Z156: 900 | AA156: 901 | AB156: 902 | AD156: 904 | AE156: 905 | AF156: 906 | AG156: 907 | AH156: 908 | AI156: 909 | AJ156: 910
C157: 912 | D157: 913 | E157: 914 | F157: 915 | G157: 916 | H157: 917 | J157: 919 | K157: 920 | L157: 921 | N157: 923 | P157: 925 | R157: 927 | S157: 928 | T157: 929 | V157: 931 | W157: 932 | Z157: 935 | AA157: 936 | AC157: 938 | AD157: 939 | AI157: 944 | AJ157: 945
B158: 946 | C158: 947 | G158: 951 | H158: 952 | I158: 953 | K158: 955 | M158: 957 | N158: 958 | P158: 960 | T158: 964 | U158: 965 | V158: 966 | W158: 967 | X158: 968 | AB158: 972 | AD158: 974 | AE158: 975 | AF158: 976 | AH158: 978 | AI158: 979
E159: 984 | G159: 986 | M159: 992 | P159: 995 | Q159: 996 | T159: 999 | U159: 1000
B161: Terug | K161: Abcoude (1) | AD161: =SUMPRODUCT((MOD(B163:AJ191,100)=0)*(B163:AJ191<1000)*(B163:AJ191<>"")) -> 8 | AF161: MANCO: | AH161: =COUNT(B163:AJ191) -> 775
B163: 1 | C163: 2 | D163: 3 | E163: 4 | F163: 5 | G163: 6 | H163: 7 | I163: 8 | J163: 9 | K163: 10 | L163: 11 | M163: 12 | N163: 13 | O163: 14 | R163: 17 | S163: 18 | V163: 21 | W163: 22 | X163: 23 | Y163: 24 | Z163: 25 | AA163: 26 | AC163: 28 | AD163: 29 | AE163: 30 | AF163: 31 | AG163: 32 | AH163: 33 | AJ163: 35
B164: 36 | C164: 37 | F164: 40 | G164: 41 | H164: 42 | K164: 45 | M164: 47 | N164: 48 | O164: 49 | P164: 50 | T164: 54 | W164: 57 | X164: 58 | AB164: 62 | AC164: 63 | AD164: 64 | AE164: 65 | AF164: 66 | AI164: 69
B165: 71 | F165: 75 | H165: 77 | I165: 78 | J165: 79 | K165: 80 | L165: 81 | M165: 82 | P165: 85 | Q165: 86 | S165: 88 | T165: 89 | U165: 90 | V165: 91 | W165: 92 | X165: 93 | Y165: 94 | AA165: 96 | AB165: 97 | AE165: 100 | AF165: 101 | AG165: 102 | AH165: 103 | AI165: 104 | AJ165: 105
B166: 106 | C166: 107 | D166: 108 | E166: 109 | F166: 110 | H166: 112 | J166: 114 | L166: 116 | M166: 117 | N166: 118 | Q166: 121 | R166: 122 | T166: 124 | U166: 125 | V166: 126 | W166: 127 | X166: 128 | Y166: 129 | Z166: 130 | AB166: 132 | AC166: 133 | AD166: 134 | AE166: 135 | AF166: 136 | AG166: 137 | AH166: 138 | AI166: 139 | AJ166: 140
B167: 141 | C167: 142 | D167: 143 | E167: 144 | F167: 145 | I167: 148 | K167: 150 | L167: 151 | M167: 152 | N167: 153 | O167: 154 | P167: 155 | Q167: 156 | R167: 157 | T167: 159 | V167: 161 | X167: 163 | Z167: 165 | AA167: 166 | AB167: 167 | AD167: 169 | AE167: 170 | AF167: 171 | AG167: 172 | AH167: 173 | AI167: 174
B168: 176 | C168: 177 | E168: 179 | F168: 180 | G168: 181 | H168: 182 | J168: 184 | K168: 185 | L168: 186 | M168: 187 | O168: 189 | P168: 190 | Q168: 191 | R168: 192 | S168: 193 | T168: 194 | U168: 195 | V168: 196 | X168: 198 | Y168: 199 | Z168: 200 | AA168: 201 | AB168: 202 | AD168: 204 | AE168: 205 | AF168: 206 | AG168: 207 | AH168: 208 | AI168: 209 | AJ168: 210
B169: 211 | C169: 212 | D169: 213 | F169: 215 | G169: 216 | H169: 217 | I169: 218 | J169: 219 | K169: 220 | L169: 221 | M169: 222 | N169: 223 | O169: 224 | Q169: 226 | R169: 227 | S169: 228 | U169: 230 | V169: 231 | W169: 232 | X169: 233 | Z169: 235 | AA169: 236 | AC169: 238 | AE169: 240 | AF169: 241 | AH169: 243 | AI169: 244
C170: 247 | D170: 248 | E170: 249 | F170: 250 | G170: 251 | H170: 252 | I170: 253 | J170: 254 | K170: 255 | L170: 256 | M170: 257 | P170: 260 | R170: 262 | S170: 263 | T170: 264 | U170: 265 | W170: 267 | X170: 268 | Y170: 269 | Z170: 270 | AB170: 272 | AF170: 276 | AH170: 278 | AJ170: 280
B171: 281 | C171: 282 | E171: 284 | F171: 285 | G171: 286 | I171: 288 | J171: 289 | K171: 290 | M171: 292 | N171: 293 | O171: 294 | P171: 295 | Q171: 296 | R171: 297 | S171: 298 | U171: 300 | V171: 301 | X171: 303 | Y171: 304 | AA171: 306 | AB171: 307 | AF171: 311 | AG171: 312 | AH171: 313 | AI171: 314
B172: 316 | C172: 317 | E172: 319 | F172: 320 | H172: 322 | I172: 323 | K172: 325 | L172: 326 | N172: 328 | O172: 329 | Q172: 331 | R172: 332 | S172: 333 | V172: 336 | X172: 338 | Y172: 339 | AA172: 341 | AB172: 342 | AC172: 343 | AE172: 345 | AF172: 346 | AG172: 347 | AH172: 348 | AI172: 349 | AJ172: 350
B173: 351 | C173: 352 | D173: 353 | E173: 354 | F173: 355 | G173: 356 | I173: 358 | J173: 359 | K173: 360 | L173: 361 | N173: 363 | P173: 365 | R173: 367 | S173: 368 | T173: 369 | U173: 370 | Y173: 374 | Z173: 375 | AA173: 376 | AB173: 377 | AC173: 378 | AD173: 379 | AE173: 380 | AF173: 381 | AG173: 382 | AH173: 383 | AI173: 384 | AJ173: 385
B174: 386 | C174: 387 | D174: 388 | E174: 389 | G174: 391 | H174: 392 | I174: 393 | J174: 394 | M174: 397 | N174: 398 | O174: 399 | P174: 400 | Q174: 401 | S174: 403 | T174: 404 | U174: 405 | V174: 406 | W174: 407 | X174: 408 | Y174: 409 | Z174: 410 | AA174: 411 | AB174: 412 | AC174: 413 | AE174: 415 | AF174: 416 | AG174: 417 | AH174: 418 | AJ174: 420
B175: 421 | C175: 422 | D175: 423 | E175: 424 | F175: 425 | G175: 426 | H175: 427 | I175: 428 | J175: 429 | K175: 430 | L175: 431 | N175: 433 | P175: 435 | R175: 437 | S175: 438 | T175: 439 | U175: 440 | V175: 441 | W175: 442 | X175: 443 | Y175: 444 | Z175: 445 | AA175: 446 | AB175: 447 | AC175: 448 | AD175: 449 | AE175: 450 | AF175: 451 | AH175: 453
B176: 456 | C176: 457 | D176: 458 | E176: 459 | F176: 460 | G176: 461 | H176: 462 | J176: 464 | L176: 466 | M176: 467 | O176: 469 | P176: 470 | R176: 472 | S176: 473 | T176: 474 | V176: 476 | W176: 477 | X176: 478 | Z176: 480 | AC176: 483 | AD176: 484 | AE176: 485 | AG176: 487 | AH176: 488 | AI176: 489 | AJ176: 490
B177: 491 | D177: 493 | E177: 494 | G177: 496 | H177: 497 | I177: 498 | J177: 499 | K177: 500 | L177: 501 | M177: 502 | N177: 503 | O177: 504 | P177: 505 | Q177: 506 | T177: 509 | V177: 511 | W177: 512 | X177: 513 | Y177: 514 | Z177: 515 | AA177: 516 | AB177: 517 | AD177: 519 | AE177: 520 | AF177: 521 | AG177: 522 | AH177: 523 | AI177: 524 | AJ177: 525
B178: 526 | C178: 527 | D178: 528 | E178: 529 | G178: 531 | H178: 532 | I178: 533 | K178: 535 | M178: 537 | N178: 538 | O178: 539 | P178: 540 | Q178: 541 | R178: 542 | T178: 544 | U178: 545 | W178: 547 | X178: 548 | Y178: 549 | Z178: 550 | AA178: 551 | AD178: 554 | AF178: 556 | AG178: 557 | AH178: 558 | AI178: 559 | AJ178: 560
B179: 561 | C179: 562 | E179: 564 | F179: 565 | G179: 566 | K179: 570 | L179: 571 | M179: 572 | N179: 573 | O179: 574 | P179: 575 | Q179: 576 | R179: 577 | S179: 578 | T179: 579 | U179: 580 | V179: 581 | W179: 582 | X179: 583 | Y179: 584 | Z179: 585 | AA179: 586 | AB179: 587 | AC179: 588 | AD179: 589 | AE179: 590 | AF179: 591 | AG179: 592 | AH179: 593 | AI179: 594 | AJ179: 595
B180: 596 | C180: 597 | D180: 598 | F180: 600 | G180: 601 | H180: 602 | I180: 603 | J180: 604 | K180: 605 | L180: 606 | N180: 608 | O180: 609 | R180: 612 | S180: 613 | T180: 614 | U180: 615 | V180: 616 | X180: 618 | Y180: 619 | Z180: 620 | AA180: 621 | AC180: 623 | AD180: 624 | AF180: 626 | AH180: 628 | AI180: 629 | AJ180: 630
B181: 631 | C181: 632 | D181: 633 | E181: 634 | F181: 635 | H181: 637 | I181: 638 | J181: 639 | K181: 640 | P181: 645 | Q181: 646 | S181: 648 | U181: 650 | V181: 651 | W181: 652 | X181: 653 | Y181: 654 | Z181: 655 | AA181: 656 | AB181: 657 | AF181: 661 | AH181: 663 | AJ181: 665
E182: 669 | F182: 670 | G182: 671 | J182: 674 | K182: 675 | L182: 676 | M182: 677 | N182: 678 | O182: 679 | P182: 680 | Q182: 681 | R182: 682 | S182: 683 | T182: 684 | V182: 686 | W182: 687 | AA182: 691 | AB182: 692 | AC182: 693 | AD182: 694 | AE182: 695 | AG182: 697 | AH182: 698 | AI182: 699
B183: 701 | C183: 702 | E183: 704 | F183: 705 | G183: 706 | H183: 707 | I183: 708 | J183: 709 | K183: 710 | L183: 711 | M183: 712 | N183: 713 | O183: 714 | P183: 715 | Q183: 716 | S183: 718 | T183: 719 | U183: 720 | V183: 721 | W183: 722 | X183: 723 | Y183: 724 | Z183: 725 | AA183: 726 | AB183: 727 | AC183: 728 | AD183: 729 | AF183: 731 | AG183: 732 | AI183: 734 | AJ183: 735
C184: 737 | D184: 738 | F184: 740 | G184: 741 | H184: 742 | I184: 743 | J184: 744 | L184: 746 | N184: 748 | O184: 749 | P184: 750 | Q184: 751 | R184: 752 | S184: 753 | T184: 754 | U184: 755 | V184: 756 | W184: 757 | X184: 758 | Y184: 759 | Z184: 760 | AA184: 761 | AB184: 762 | AC184: 763 | AD184: 764 | AE184: 765 | AF184: 766 | AH184: 768 | AI184: 769 | AJ184: 770
B185: 771 | C185: 772 | D185: 773 | E185: 774 | F185: 775 | G185: 776 | H185: 777 | I185: 778 | J185: 779 | K185: 780 | L185: 781 | M185: 782 | N185: 783 | O185: 784 | P185: 785 | Q185: 786 | R185: 787 | S185: 788 | T185: 789 | U185: 790 | V185: 791 | W185: 792 | X185: 793 | Y185: 794 | Z185: 795 | AB185: 797 | AC185: 798 | AE185: 800 | AG185: 802 | AH185: 803 | AJ185: 805
B186: 806 | C186: 807 | D186: 808 | E186: 809 | F186: 810 | I186: 813 | J186: 814 | L186: 816 | N186: 818 | O186: 819 | Q186: 821 | R186: 822 | S186: 823 | U186: 825 | W186: 827 | Y186: 829 | Z186: 830 | AA186: 831 | AB186: 832 | AC186: 833 | AF186: 836 | AG186: 837 | AI186: 839 | AJ186: 840
C187: 842 | D187: 843 | E187: 844 | F187: 845 | H187: 847 | I187: 848 | J187: 849 | L187: 851 | M187: 852 | N187: 853 | O187: 854 | P187: 855 | Q187: 856 | X187: 863 | Y187: 864 | AA187: 866 | AB187: 867 | AC187: 868 | AE187: 870 | AF187: 871 | AG187: 872 | AH187: 873 | AI187: 874 | AJ187: 875
B188: 876 | C188: 877 | D188: 878 | E188: 879 | F188: 880 | G188: 881 | H188: 882 | J188: 884 | K188: 885 | L188: 886 | M188: 887 | N188: 888 | P188: 890 | Q188: 891 | R188: 892 | S188: 893 | U188: 895 | X188: 898 | Y188: 899 | Z188: 900 | AA188: 901 | AB188: 902 | AC188: 903 | AD188: 904 | AE188: 905 | AG188: 907 | AH188: 908 | AI188: 909 | AJ188: 910
B189: 911 | C189: 912 | D189: 913 | E189: 914 | F189: 915 | G189: 916 | H189: 917 | I189: 918 | J189: 919 | K189: 920 | L189: 921 | M189: 922 | N189: 923 | O189: 924 | P189: 925 | Q189: 926 | S189: 928 | T189: 929 | U189: 930 | V189: 931 | W189: 932 | X189: 933 | Y189: 934 | Z189: 935 | AA189: 936 | AB189: 937 | AC189: 938 | AD189: 939 | AE189: 940 | AJ189: 945
B190: 946 | C190: 947 | D190: 948 | E190: 949 | H190: 952 | I190: 953 | K190: 955 | L190: 956 | M190: 957 | N190: 958 | O190: 959 | P190: 960 | Q190: 961 | R190: 962 | T190: 964 | U190: 965 | V190: 966 | X190: 968 | Y190: 969 | Z190: 970 | AA190: 971 | AB190: 972 | AD190: 974 | AE190: 975 | AF190: 976 | AG190: 977 | AJ190: 980
B191: 981 | D191: 983 | E191: 984 | G191: 986 | H191: 987 | I191: 988 | J191: 989 | K191: 990 | L191: 991 | M191: 992 | N191: 993 | O191: 994 | P191: 995 | Q191: 996 | R191: 997 | S191: 998 | T191: 999 | U191: 1000
B193: Terug | K193: Aerdenhout | AD193: =SUMPRODUCT((MOD(B195:AJ223,100)=0)*(B195:AJ223<1000)*(B195:AJ223<>"")) -> 6 | AF193: MANCO: | AH193: =COUNT(B195:AJ223) -> 379
B195: 1 | E195: 4 | P195: 15 | X195: 23 | Y195: 24 | AD195: 29 | AE195: 30 | AF195: 31 | AG195: 32 | AH195: 33
B196: 36 | C196: 37 | D196: 38 | G196: 41 | H196: 42 | I196: 43 | M196: 47 | P196: 50 | Q196: 51 | AE196: 65 | AH196: 68
D197: 73 | F197: 75 | L197: 81 | P197: 85 | U197: 90 | V197: 91 | W197: 92 | X197: 93 | Z197: 95 | AG197: 102
B198: 106 | E198: 109 | H198: 112 | K198: 115 | O198: 119 | P198: 120 | Q198: 121 | R198: 122 | U198: 125 | AB198: 132 | AD198: 134 | AF198: 136 | AI198: 139 | AJ198: 140
C199: 142 | J199: 149 | L199: 151 | M199: 152 | N199: 153 | P199: 155 | Q199: 156 | Y199: 164 | AA199: 166 | AB199: 167 | AC199: 168 | AE199: 170 | AG199: 172 | AJ199: 175
B200: 176 | G200: 181 | H200: 182 | O200: 189 | P200: 190 | R200: 192 | T200: 194 | U200: 195 | V200: 196 | W200: 197 | Z200: 200 | AE200: 205
E201: 214 | F201: 215 | I201: 218 | N201: 223 | O201: 224 | Q201: 226 | R201: 227 | W201: 232 | X201: 233 | AD201: 239 | AF201: 241 | AJ201: 245
C202: 247 | F202: 250 | I202: 253 | K202: 255 | N202: 258 | R202: 262 | S202: 263 | T202: 264 | W202: 267 | AA202: 271 | AB202: 272 | AF202: 276 | AH202: 278 | AI202: 279 | AJ202: 280
E203: 284 | G203: 286 | H203: 287 | J203: 289 | K203: 290 | R203: 297 | T203: 299 | U203: 300 | V203: 301 | X203: 303 | AC203: 308 | AE203: 310 | AF203: 311 | AI203: 314 | AJ203: 315
D204: 318 | H204: 322 | K204: 325 | U204: 335 | X204: 338 | Z204: 340 | AB204: 342 | AC204: 343 | AF204: 346 | AG204: 347 | AJ204: 350
C205: 352 | D205: 353 | E205: 354 | N205: 363 | P205: 365 | Q205: 366 | S205: 368 | T205: 369 | V205: 371 | X205: 373 | AA205: 376 | AG205: 382
E206: 389 | G206: 391 | I206: 393 | J206: 394 | L206: 396 | N206: 398 | O206: 399 | P206: 400 | T206: 404 | U206: 405 | V206: 406 | W206: 407 | Y206: 409 | AD206: 414 | AE206: 415 | AG206: 417 | AH206: 418 | AJ206: 420
G207: 426 | K207: 430 | O207: 434 | P207: 435 | Q207: 436 | T207: 439 | AB207: 447 | AH207: 453
B208: 456 | G208: 461 | O208: 469 | P208: 470 | T208: 474 | Y208: 479 | Z208: 480
B209: 491 | D209: 493 | E209: 494 | F209: 495 | G209: 496 | I209: 498 | L209: 501 | P209: 505 | T209: 509 | U209: 510 | V209: 511 | X209: 513 | Y209: 514 | Z209: 515 | AA209: 516 | AI209: 524 | AJ209: 525
B210: 526 | E210: 529 | J210: 534 | K210: 535 | L210: 536 | M210: 537 | P210: 540 | Q210: 541 | T210: 544 | U210: 545 | W210: 547 | X210: 548 | Z210: 550 | AC210: 553 | AF210: 556
B211: 561 | D211: 563 | Q211: 576 | R211: 577 | S211: 578 | U211: 580 | V211: 581 | X211: 583 | Y211: 584 | Z211: 585 | AD211: 589 | AG211: 592 | AI211: 594
B212: 596 | D212: 598 | E212: 599 | H212: 602 | I212: 603 | K212: 605 | M212: 607 | R212: 612 | U212: 615 | Y212: 619 | AF212: 626 | AG212: 627 | AJ212: 630
M213: 642 | O213: 644 | Q213: 646 | R213: 647 | S213: 648 | T213: 649 | W213: 652 | Y213: 654 | AB213: 657 | AD213: 659 | AH213: 663 | AJ213: 665
C214: 667 | E214: 669 | G214: 671 | H214: 672 | I214: 673 | J214: 674 | K214: 675 | N214: 678 | P214: 680 | R214: 682 | S214: 683 | V214: 686 | AA214: 691 | AD214: 694 | AE214: 695 | AG214: 697 | AJ214: 700
... 1701 more rows
